Workbook

Sheet Jegyzőkönyv
B1: Csapatok | D1: pontozás: | E1: =Versenyszámok!E1 -> idő | F1: H. | G1: pontozás: | H1: =Versenyszámok!E2 -> idő | I1: H. | J1: pontozás: | K1: =Versenyszámok!E3 -> idő | L1: H. | M1: pontozás: | N1: =Versenyszámok!E4 -> idő | O1: H. | P1: pontozás: | Q1: =Versenyszámok!E5 -> idő | R1: H. | S1: pontozás: | T1: =Versenyszámok!E6 -> idő | U1: H. | V1: pontozás: | W1: =Versenyszámok!E7 -> idő | X1: H. | Y1: pontozás: | Z1: =Versenyszámok!E8 -> idő | AA1: H. | AB1: pontozás: | AC1: =Versenyszámok!E9 -> idő | AD1: H. | AE1: pontozás: | AF1: =Versenyszámok!E10 -> helyezés | AG1: Ö: | AH1: H. | AI1: Holtverseny | AJ1: =Versenyszámok!E11 -> idő
D2: =CONCATENATE("1. ",Versenyszámok!D1) -> 1. Futás váltóbottal | G2: =CONCATENATE("2. ",Versenyszámok!D2) -> 2. Négykézlábjárás | J2: =CONCATENATE("3. ",Versenyszámok!D3) -> 3. Alagúton át | M2: =CONCATENATE("4. ",Versenyszámok!D4) -> 4. Labdás ügyességi váltó | P2: =CONCATENATE("5. ",Versenyszámok!D5) -> 5. Hídakadály | S2: =CONCATENATE("6. ",Versenyszámok!D6) -> 6. Bújj és karikában fuss | V2: =CONCATENATE("7. ",Versenyszámok!D7) -> 7. Karikarakó | Y2: =CONCATENATE("8. ",Versenyszámok!D8) -> 8. Szlalom kézilabda | AB2: =CONCATENATE("9. ",Versenyszámok!D9) -> 9. Karikán az akadályra | AE2: =CONCATENATE("10. ",Versenyszámok!D10) -> 10. Bombázó | AI2: =Versenyszámok!D11 -> Akadálypálya
A3: 1. | B3: Pécs | C3: Idő (p:mp:tmp): | D3: 00:02:10.520 | F3: =IF(ISBLANK(D3),"",RANK(E7,(E$7,E$12,E$17,E$22,E$27,E$32,E$37,E$42,E$47,E$52,E$57,E$62),0)) -> 3 | G3: 00:01:13.110 | I3: =IF(ISBLANK(G3),"",RANK(H7,(H$7,H$12,H$17,H$22,H$27,H$32,H$37,H$42,H$47,H$52,H$57,H$62),0)) -> 4 | J3: 00:02:33.450 | L3: =IF(ISBLANK(J3),"",RANK(K7,(K$7,K$12,K$17,K$22,K$27,K$32,K$37,K$42,K$47,K$52,K$57,K$62),0)) -> 4 | M3: 00:03:40.080 | O3: =IF(ISBLANK(M3),"",RANK(N7,(N$7,N$12,N$17,N$22,N$27,N$32,N$37,N$42,N$47,N$52,N$57,N$62),0)) -> 4 | P3: 00:00:22.600 | R3: =IF(ISBLANK(P3),"",RANK(Q7,(Q$7,Q$12,Q$17,Q$22,Q$27,Q$32,Q$37,Q$42,Q$47,Q$52,Q$57,Q$62),0)) -> 5 | S3: 00:01:39.800 | U3: =IF(ISBLANK(S3),"",RANK(T7,(T$7,T$12,T$17,T$22,T$27,T$32,T$37,T$42,T$47,T$52,T$57,T$62),0)) -> 5 | V3: 00:02:27.510 | X3: =IF(ISBLANK(V3),"",RANK(W7,(W$7,W$12,W$17,W$22,W$27,W$32,W$37,W$42,W$47,W$52,W$57,W$62),0)) -> 5 | Y3: 00:01:49.070 | AA3: =IF(ISBLANK(Y3),"",RANK(Z7,(Z$7,Z$12,Z$17,Z$22,Z$27,Z$32,Z$37,Z$42,Z$47,Z$52,Z$57,Z$62),0)) -> 5 | AB3: 00:02:16.180 | AD3: =IF(ISBLANK(AB3),"",RANK(AC7,(AC$7,AC$12,AC$17,AC$22,AC$27,AC$32,AC$37,AC$42,AC$47,AC$52,AC$57,AC$62),0)) -> 5 | AE3: 2 | AG3: =IF(ISBLANK(D3),"",SUM(D7,G7,J7,M7,P7,S7,V7,Y7,AB7,AE7,AE4)+IF(AI6=0,0,(($C$87-AI6+1)/1000))) -> 18 | AH3: =IF(ISBLANK(D3),"",RANK(AG3,($AG$3,$AG$8,$AG$13,$AG$18,$AG$23,$AG$28,$AG$33,$AG$38,$AG$43,$AG$48,$AG$53,$AG$58))) -> 5
C4: Hiba (p:mp:tmp): | S4: 00:00:05 | V4: 00:00:05
C5: Össz.idő | D5: =SUM(D3,D4) -> 00:02:10.520 | G5: =SUM(G3,G4) -> 00:01:13.110 | J5: =SUM(J3,J4) -> 00:02:33.450 | M5: =SUM(M3,M4) -> 00:03:40.080 | P5: =SUM(P3,P4) -> 00:00:22.600 | S5: =SUM(S3,S4) -> 00:01:44.800 | V5: =SUM(V3,V4) -> 00:02:32.510 | Y5: =SUM(Y3,Y4) -> 00:01:49.070 | AB5: =SUM(AB3,AB4) -> 00:02:16.180 | AE5: =AE3 -> 2 | AI5: =SUM(AI3:AJ4) -> 00:00:00
C6: Helyezés | D6: =IF(ISBLANK(D3),"",E120) -> 3 | G6: =IF(ISBLANK(G3),"",H120) -> 5 | J6: =IF(ISBLANK(J3),"",K120) -> 5 | M6: =IF(ISBLANK(M3),"",N120) -> 4 | P6: =IF(ISBLANK(P3),"",Q120) -> 4 | S6: =IF(ISBLANK(S3),"",T120) -> 5 | V6: =IF(ISBLANK(V3),"",W120) -> 4 | Y6: =IF(ISBLANK(Y3),"",Z120) -> 5 | AB6: =IF(ISBLANK(AB3),"",AC120) -> 5 | AE6: =IF(ISBLANK(AE3),"",AF120) -> 2 | AI6: =IF(ISBLANK(AI3),0,AJ120) -> 00:00:00
C7: Pont/Összp. | D7: =IF(ISBLANK(D3),"",$C$87-E103+1) -> 3 | E7: =D7 -> 3 | G7: =IF(ISBLANK(G3),"",$C$87-H103+1) -> 1 | H7: =IF(ISBLANK(G3),"",SUM(E7,G7)) -> 4 | J7: =IF(ISBLANK(J3),"",$C$87-K103+1) -> 1 | K7: =IF(ISBLANK(J3),"",SUM(H7,J7)) -> 5 | M7: =IF(ISBLANK(M3),"",$C$87-N103+1) -> 2 | N7: =IF(ISBLANK(M3),"",SUM(K7,M7)) -> 7 | P7: =IF(ISBLANK(P3),"",$C$87-Q103+1) -> 2 | Q7: =IF(ISBLANK(P3),"",SUM(N7,P7)) -> 9 | S7: =IF(ISBLANK(S3),"",$C$87-T103+1) -> 1 | T7: =IF(ISBLANK(S3),"",SUM(Q7,S7)) -> 10 | V7: =IF(ISBLANK(V3),"",$C$87-W103+1) -> 2 | W7: =IF(ISBLANK(V3),"",SUM(T7,V7)) -> 12 | Y7: =IF(ISBLANK(Y3),"",$C$87-Z103+1) -> 1 | Z7: =IF(ISBLANK(Y3),"",SUM(W7,Y7)) -> 13 | AB7: =IF(ISBLANK(AB3),"",$C$87-AC103+1) -> 1 | AC7: =IF(ISBLANK(AB3),"",SUM(Z7,AB7)) -> 14 | AE7: =IF(ISBLANK(AE3),"",$C$87-AF103+1) -> 4 | AF7: =IF(ISBLANK(AE3),"",SUM(AC7,AE7)) -> 18
A8: 2. | B8: Békés | C8: Idő (p:mp:tmp): | D8: 00:02:10.030 | F8: =IF(ISBLANK(D8),"",RANK(E12,(E$7,E$12,E$17,E$22,E$27,E$32,E$37,E$42,E$47,E$52,E$57,E$62),0)) -> 5 | G8: 00:01:11.440 | I8: =IF(ISBLANK(G8),"",RANK(H12,(H$7,H$12,H$17,H$22,H$27,H$32,H$37,H$42,H$47,H$52,H$57,H$62),0)) -> 5 | J8: 00:02:29.230 | L8: =IF(ISBLANK(J8),"",RANK(K12,(K$7,K$12,K$17,K$22,K$27,K$32,K$37,K$42,K$47,K$52,K$57,K$62),0)) -> 4 | M8: 00:03:56.830 | O8: =IF(ISBLANK(M8),"",RANK(N12,(N$7,N$12,N$17,N$22,N$27,N$32,N$37,N$42,N$47,N$52,N$57,N$62),0)) -> 5 | P8: 00:00:20.570 | R8: =IF(ISBLANK(P8),"",RANK(Q12,(Q$7,Q$12,Q$17,Q$22,Q$27,Q$32,Q$37,Q$42,Q$47,Q$52,Q$57,Q$62),0)) -> 4 | S8: 00:01:38.890 | U8: =IF(ISBLANK(S8),"",RANK(T12,(T$7,T$12,T$17,T$22,T$27,T$32,T$37,T$42,T$47,T$52,T$57,T$62),0)) -> 4 | V8: 00:02:26.240 | X8: =IF(ISBLANK(V8),"",RANK(W12,(W$7,W$12,W$17,W$22,W$27,W$32,W$37,W$42,W$47,W$52,W$57,W$62),0)) -> 4 | Y8: 00:01:36.150 | AA8: =IF(ISBLANK(Y8),"",RANK(Z12,(Z$7,Z$12,Z$17,Z$22,Z$27,Z$32,Z$37,Z$42,Z$47,Z$52,Z$57,Z$62),0)) -> 4 | AB8: 00:02:13.940 | AD8: =IF(ISBLANK(AB8),"",RANK(AC12,(AC$7,AC$12,AC$17,AC$22,AC$27,AC$32,AC$37,AC$42,AC$47,AC$52,AC$57,AC$62),0)) -> 4 | AE8: 1 | AG8: =IF(ISBLANK(D8),"",SUM(D12,G12,J12,M12,P12,S12,V12,Y12,AB12,AE12,AE9)+IF(AI11=0,0,(($C$87-AI11+1)/1000))) -> 27 | AH8: =IF(ISBLANK(D8),"",RANK(AG8,($AG$3,$AG$8,$AG$13,$AG$18,$AG$23,$AG$28,$AG$33,$AG$38,$AG$43,$AG$48,$AG$53,$AG$58))) -> 3
C9: Hiba (p:mp:tmp): | D9: 00:00:01 | G9: 00:00:01 | V9: 00:00:05 | Y9: 00:00:05 | AB9: 00:00:01
C10: Össz.idő | D10: =SUM(D8,D9) -> 00:02:11.030 | G10: =SUM(G8,G9) -> 00:01:12.440 | J10: =SUM(J8,J9) -> 00:02:29.230 | M10: =SUM(M8,M9) -> 00:03:56.830 | P10: =SUM(P8,P9) -> 00:00:20.570 | S10: =SUM(S8,S9) -> 00:01:38.890 | V10: =SUM(V8,V9) -> 00:02:31.240 | Y10: =SUM(Y8,Y9) -> 00:01:41.150 | AB10: =SUM(AB8,AB9) -> 00:02:14.940 | AE10: =AE8 -> 1 | AI10: =SUM(AI8:AJ9) -> 00:00:00
C11: Helyezés | D11: =IF(ISBLANK(D8),"",E121) -> 5 | G11: =IF(ISBLANK(G8),"",H121) -> 4 | J11: =IF(ISBLANK(J8),"",K121) -> 4 | M11: =IF(ISBLANK(M8),"",N121) -> 5 | P11: =IF(ISBLANK(P8),"",Q121) -> 1 | S11: =IF(ISBLANK(S8),"",T121) -> 4 | V11: =IF(ISBLANK(V8),"",W121) -> 2 | Y11: =IF(ISBLANK(Y8),"",Z121) -> 3 | AB11: =IF(ISBLANK(AB8),"",AC121) -> 4 | AE11: =IF(ISBLANK(AE8),"",AF121) -> 1 | AI11: =IF(ISBLANK(AI8),0,AJ121) -> 00:00:00
C12: Pont/Összp. | D12: =IF(ISBLANK(D8),"",$C$87-E104+1) -> 1 | E12: =D12 -> 1 | G12: =IF(ISBLANK(G8),"",$C$87-H104+1) -> 2 | H12: =IF(ISBLANK(G8),"",SUM(E12,G12)) -> 3 | J12: =IF(ISBLANK(J8),"",$C$87-K104+1) -> 2 | K12: =IF(ISBLANK(J8),"",SUM(H12,J12)) -> 5 | M12: =IF(ISBLANK(M8),"",$C$87-N104+1) -> 1 | N12: =IF(ISBLANK(M8),"",SUM(K12,M12)) -> 6 | P12: =IF(ISBLANK(P8),"",$C$87-Q104+1) -> 5 | Q12: =IF(ISBLANK(P8),"",SUM(N12,P12)) -> 11 | S12: =IF(ISBLANK(S8),"",$C$87-T104+1) -> 2 | T12: =IF(ISBLANK(S8),"",SUM(Q12,S12)) -> 13 | V12: =IF(ISBLANK(V8),"",$C$87-W104+1) -> 4 | W12: =IF(ISBLANK(V8),"",SUM(T12,V12)) -> 17 | Y12: =IF(ISBLANK(Y8),"",$C$87-Z104+1) -> 3 | Z12: =IF(ISBLANK(Y8),"",SUM(W12,Y12)) -> 20 | AB12: =IF(ISBLANK(AB8),"",$C$87-AC104+1) -> 2 | AC12: =IF(ISBLANK(AB8),"",SUM(Z12,AB12)) -> 22 | AE12: =IF(ISBLANK(AE8),"",$C$87-AF104+1) -> 5 | AF12: =IF(ISBLANK(AE8),"",SUM(AC12,AE12)) -> 27
A13: 3. | B13: Hajdúböszörmény | C13: Idő (p:mp:tmp): | D13: 00:02:10.900 | F13: =IF(ISBLANK(D13),"",RANK(E17,(E$7,E$12,E$17,E$22,E$27,E$32,E$37,E$42,E$47,E$52,E$57,E$62),0)) -> 4 | G13: 00:01:02.280 | I13: =IF(ISBLANK(G13),"",RANK(H17,(H$7,H$12,H$17,H$22,H$27,H$32,H$37,H$42,H$47,H$52,H$57,H$62),0)) -> 3 | J13: 00:02:24.770 | L13: =IF(ISBLANK(J13),"",RANK(K17,(K$7,K$12,K$17,K$22,K$27,K$32,K$37,K$42,K$47,K$52,K$57,K$62),0)) -> 3 | M13: 00:03:27.720 | O13: =IF(ISBLANK(M13),"",RANK(N17,(N$7,N$12,N$17,N$22,N$27,N$32,N$37,N$42,N$47,N$52,N$57,N$62),0)) -> 2 | P13: 00:00:22.620 | R13: =IF(ISBLANK(P13),"",RANK(Q17,(Q$7,Q$12,Q$17,Q$22,Q$27,Q$32,Q$37,Q$42,Q$47,Q$52,Q$57,Q$62),0)) -> 3 | S13: 00:01:31.610 | U13: =IF(ISBLANK(S13),"",RANK(T17,(T$7,T$12,T$17,T$22,T$27,T$32,T$37,T$42,T$47,T$52,T$57,T$62),0)) -> 3 | V13: 00:02:26.970 | X13: =IF(ISBLANK(V13),"",RANK(W17,(W$7,W$12,W$17,W$22,W$27,W$32,W$37,W$42,W$47,W$52,W$57,W$62),0)) -> 3 | Y13: 00:01:45.330 | AA13: =IF(ISBLANK(Y13),"",RANK(Z17,(Z$7,Z$12,Z$17,Z$22,Z$27,Z$32,Z$37,Z$42,Z$47,Z$52,Z$57,Z$62),0)) -> 3 | AB13: 00:02:14.300 | AD13: =IF(ISBLANK(AB13),"",RANK(AC17,(AC$7,AC$12,AC$17,AC$22,AC$27,AC$32,AC$37,AC$42,AC$47,AC$52,AC$57,AC$62),0)) -> 3 | AE13: 5 | AG13: =IF(ISBLANK(D13),"",SUM(D17,G17,J17,M17,P17,S17,V17,Y17,AB17,AE17,AE14)+IF(AI16=0,0,(($C$87-AI16+1)/1000))) -> 26 | AH13: =IF(ISBLANK(D13),"",RANK(AG13,($AG$3,$AG$8,$AG$13,$AG$18,$AG$23,$AG$28,$AG$33,$AG$38,$AG$43,$AG$48,$AG$53,$AG$58))) -> 4
C14: Hiba (p:mp:tmp): | S14: 00:00:04 | V14: 00:00:15 | Y14: 00:00:02
C15: Össz.idő | D15: =SUM(D13,D14) -> 00:02:10.900 | G15: =SUM(G13,G14) -> 00:01:02.280 | J15: =SUM(J13,J14) -> 00:02:24.770 | M15: =SUM(M13,M14) -> 00:03:27.720 | P15: =SUM(P13,P14) -> 00:00:22.620 | S15: =SUM(S13,S14) -> 00:01:35.610 | V15: =SUM(V13,V14) -> 00:02:41.970 | Y15: =SUM(Y13,Y14) -> 00:01:47.330 | AB15: =SUM(AB13,AB14) -> 00:02:14.300 | AE15: =AE13 -> 5 | AI15: =SUM(AI13:AJ14) -> 00:00:00
C16: Helyezés | D16: =IF(ISBLANK(D13),"",E122) -> 4 | G16: =IF(ISBLANK(G13),"",H122) -> 1 | J16: =IF(ISBLANK(J13),"",K122) -> 3 | M16: =IF(ISBLANK(M13),"",N122) -> 1 | P16: =IF(ISBLANK(P13),"",Q122) -> 5 | S16: =IF(ISBLANK(S13),"",T122) -> 3 | V16: =IF(ISBLANK(V13),"",W122) -> 5 | Y16: =IF(ISBLANK(Y13),"",Z122) -> 4 | AB16: =IF(ISBLANK(AB13),"",AC122) -> 3 | AE16: =IF(ISBLANK(AE13),"",AF122) -> 5 | AI16: =IF(ISBLANK(AI13),0,AJ122) -> 00:00:00
C17: Pont/Összp. | D17: =IF(ISBLANK(D13),"",$C$87-E105+1) -> 2 | E17: =D17 -> 2 | G17: =IF(ISBLANK(G13),"",$C$87-H105+1) -> 5 | H17: =IF(ISBLANK(G13),"",SUM(E17,G17)) -> 7 | J17: =IF(ISBLANK(J13),"",$C$87-K105+1) -> 3 | K17: =IF(ISBLANK(J13),"",SUM(H17,J17)) -> 10 | M17: =IF(ISBLANK(M13),"",$C$87-N105+1) -> 5 | N17: =IF(ISBLANK(M13),"",SUM(K17,M17)) -> 15 | P17: =IF(ISBLANK(P13),"",$C$87-Q105+1) -> 1 | Q17: =IF(ISBLANK(P13),"",SUM(N17,P17)) -> 16 | S17: =IF(ISBLANK(S13),"",$C$87-T105+1) -> 3 | T17: =IF(ISBLANK(S13),"",SUM(Q17,S17)) -> 19 | V17: =IF(ISBLANK(V13),"",$C$87-W105+1) -> 1 | W17: =IF(ISBLANK(V13),"",SUM(T17,V17)) -> 20 | Y17: =IF(ISBLANK(Y13),"",$C$87-Z105+1) -> 2 | Z17: =IF(ISBLANK(Y13),"",SUM(W17,Y17)) -> 22 | AB17: =IF(ISBLANK(AB13),"",$C$87-AC105+1) -> 3 | AC17: =IF(ISBLANK(AB13),"",SUM(Z17,AB17)) -> 25 | AE17: =IF(ISBLANK(AE13),"",$C$87-AF105+1) -> 1 | AF17: =IF(ISBLANK(AE13),"",SUM(AC17,AE17)) -> 26
A18: 4. | B18: Törökbálint | C18: Idő (p:mp:tmp): | D18: 00:02:06.220 | F18: =IF(ISBLANK(D18),"",RANK(E22,(E$7,E$12,E$17,E$22,E$27,E$32,E$37,E$42,E$47,E$52,E$57,E$62),0)) -> 1 | G18: 00:01:05.930 | I18: =IF(ISBLANK(G18),"",RANK(H22,(H$7,H$12,H$17,H$22,H$27,H$32,H$37,H$42,H$47,H$52,H$57,H$62),0)) -> 1 | J18: 00:02:19.580 | L18: =IF(ISBLANK(J18),"",RANK(K22,(K$7,K$12,K$17,K$22,K$27,K$32,K$37,K$42,K$47,K$52,K$57,K$62),0)) -> 2 | M18: 00:03:35.420 | O18: =IF(ISBLANK(M18),"",RANK(N22,(N$7,N$12,N$17,N$22,N$27,N$32,N$37,N$42,N$47,N$52,N$57,N$62),0)) -> 2 | P18: 00:00:21.350 | R18: =IF(ISBLANK(P18),"",RANK(Q22,(Q$7,Q$12,Q$17,Q$22,Q$27,Q$32,Q$37,Q$42,Q$47,Q$52,Q$57,Q$62),0)) -> 2 | S18: 00:01:33.070 | U18: =IF(ISBLANK(S18),"",RANK(T22,(T$7,T$12,T$17,T$22,T$27,T$32,T$37,T$42,T$47,T$52,T$57,T$62),0)) -> 2 | V18: 00:02:29.330 | X18: =IF(ISBLANK(V18),"",RANK(W22,(W$7,W$12,W$17,W$22,W$27,W$32,W$37,W$42,W$47,W$52,W$57,W$62),0)) -> 1 | Y18: 00:01:38.580 | AA18: =IF(ISBLANK(Y18),"",RANK(Z22,(Z$7,Z$12,Z$17,Z$22,Z$27,Z$32,Z$37,Z$42,Z$47,Z$52,Z$57,Z$62),0)) -> 2 | AB18: 00:02:10.680 | AD18: =IF(ISBLANK(AB18),"",RANK(AC22,(AC$7,AC$12,AC$17,AC$22,AC$27,AC$32,AC$37,AC$42,AC$47,AC$52,AC$57,AC$62),0)) -> 2 | AE18: 4 | AG18: =IF(ISBLANK(D18),"",SUM(D22,G22,J22,M22,P22,S22,V22,Y22,AB22,AE22,AE19)+IF(AI21=0,0,(($C$87-AI21+1)/1000))) -> 38 | AH18: =IF(ISBLANK(D18),"",RANK(AG18,($AG$3,$AG$8,$AG$13,$AG$18,$AG$23,$AG$28,$AG$33,$AG$38,$AG$43,$AG$48,$AG$53,$AG$58))) -> 2
C19: Hiba (p:mp:tmp): | D19: 00:00:01 | G19: 00:00:01 | M19: 00:00:02 | AB19: 00:00:02
C20: Össz.idő | D20: =SUM(D18,D19) -> 00:02:07.220 | G20: =SUM(G18,G19) -> 00:01:06.930 | J20: =SUM(J18,J19) -> 00:02:19.580 | M20: =SUM(M18,M19) -> 00:03:37.420 | P20: =SUM(P18,P19) -> 00:00:21.350 | S20: =SUM(S18,S19) -> 00:01:33.070 | V20: =SUM(V18,V19) -> 00:02:29.330 | Y20: =SUM(Y18,Y19) -> 00:01:38.580 | AB20: =SUM(AB18,AB19) -> 00:02:12.680 | AE20: =AE18 -> 4 | AI20: =SUM(AI18:AJ19) -> 00:00:00
C21: Helyezés | D21: =IF(ISBLANK(D18),"",E123) -> 1 | G21: =IF(ISBLANK(G18),"",H123) -> 3 | J21: =IF(ISBLANK(J18),"",K123) -> 2 | M21: =IF(ISBLANK(M18),"",N123) -> 3 | P21: =IF(ISBLANK(P18),"",Q123) -> 2 | S21: =IF(ISBLANK(S18),"",T123) -> 2 | V21: =IF(ISBLANK(V18),"",W123) -> 1 | Y21: =IF(ISBLANK(Y18),"",Z123) -> 2 | AB21: =IF(ISBLANK(AB18),"",AC123) -> 2 | AE21: =IF(ISBLANK(AE18),"",AF123) -> 4 | AI21: =IF(ISBLANK(AI18),0,AJ123) -> 00:00:00
C22: Pont/Összp. | D22: =IF(ISBLANK(D18),"",$C$87-E106+1) -> 5 | E22: =D22 -> 5 | G22: =IF(ISBLANK(G18),"",$C$87-H106+1) -> 3 | H22: =IF(ISBLANK(G18),"",SUM(E22,G22)) -> 8 | J22: =IF(ISBLANK(J18),"",$C$87-K106+1) -> 4 | K22: =IF(ISBLANK(J18),"",SUM(H22,J22)) -> 12 | M22: =IF(ISBLANK(M18),"",$C$87-N106+1) -> 3 | N22: =IF(ISBLANK(M18),"",SUM(K22,M22)) -> 15 | P22: =IF(ISBLANK(P18),"",$C$87-Q106+1) -> 4 | Q22: =IF(ISBLANK(P18),"",SUM(N22,P22)) -> 19 | S22: =IF(ISBLANK(S18),"",$C$87-T106+1) -> 4 | T22: =IF(ISBLANK(S18),"",SUM(Q22,S22)) -> 23 | V22: =IF(ISBLANK(V18),"",$C$87-W106+1) -> 5 | W22: =IF(ISBLANK(V18),"",SUM(T22,V22)) -> 28 | Y22: =IF(ISBLANK(Y18),"",$C$87-Z106+1) -> 4 | Z22: =IF(ISBLANK(Y18),"",SUM(W22,Y22)) -> 32 | AB22: =IF(ISBLANK(AB18),"",$C$87-AC106+1) -> 4 | AC22: =IF(ISBLANK(AB18),"",SUM(Z22,AB22)) -> 36 | AE22: =IF(ISBLANK(AE18),"",$C$87-AF106+1) -> 2 | AF22: =IF(ISBLANK(AE18),"",SUM(AC22,AE22)) -> 38
A23: 5. | B23: Szombathely | C23: Idő (p:mp:tmp): | D23: 00:02:08.130 | F23: =IF(ISBLANK(D23),"",RANK(E27,(E$7,E$12,E$17,E$22,E$27,E$32,E$37,E$42),0)) -> 2 | G23: 00:01:03.490 | I23: =IF(ISBLANK(G23),"",RANK(H27,(H$7,H$12,H$17,H$22,H$27,H$32,H$37,H$42),0)) -> 1 | J23: 00:02:18.380 | L23: =IF(ISBLANK(J23),"",RANK(K27,(K$7,K$12,K$17,K$22,K$27,K$32,K$37,K$42),0)) -> 1 | M23: 00:03:25.620 | O23: =IF(ISBLANK(M23),"",RANK(N27,(N$7,N$12,N$17,N$22,N$27,N$32,N$37,N$42),0)) -> 1 | P23: 00:00:21.960 | R23: =IF(ISBLANK(P23),"",RANK(Q27,(Q$7,Q$12,Q$17,Q$22,Q$27,Q$32,Q$37,Q$42),0)) -> 1 | S23: 00:01:31.850 | U23: =IF(ISBLANK(S23),"",RANK(T27,(T$7,T$12,T$17,T$22,T$27,T$32,T$37,T$42),0)) -> 1 | V23: 00:02:32.380 | X23: =IF(ISBLANK(V23),"",RANK(W27,(W$7,W$12,W$17,W$22,W$27,W$32,W$37,W$42),0)) -> 1 | Y23: 00:01:33.480 | AA23: =IF(ISBLANK(Y23),"",RANK(Z27,(Z$7,Z$12,Z$17,Z$22,Z$27,Z$32,Z$37,Z$42),0)) -> 1 | AB23: 00:02:11.830 | AD23: =IF(ISBLANK(AB23),"",RANK(AC27,(AC$7,AC$12,AC$17,AC$22,AC$27,AC$32,AC$37,AC$42),0)) -> 1 | AE23: 3 | AG23: =IF(ISBLANK(D23),"",SUM(D27,G27,J27,M27,P27,S27,V27,Y27,AB27,AE27,AE24)+IF(AI26=0,0,(($C$87-AI26+1)/1000))) -> 41 | AH23: =IF(ISBLANK(D23),"",RANK(AG23,($AG$3,$AG$8,$AG$13,$AG$18,$AG$23,$AG$28,$AG$33,$AG$38,$AG$43,$AG$48,$AG$53,$AG$58))) -> 1
C24: Hiba (p:mp:tmp): | M24: 00:00:04 | Y24: 00:00:02
C25: Össz.idő | D25: =SUM(D23,D24) -> 00:02:08.130 | G25: =SUM(G23,G24) -> 00:01:03.490 | J25: =SUM(J23,J24) -> 00:02:18.380 | M25: =SUM(M23,M24) -> 00:03:29.620 | P25: =SUM(P23,P24) -> 00:00:21.960 | S25: =SUM(S23,S24) -> 00:01:31.850 | V25: =SUM(V23,V24) -> 00:02:32.380 | Y25: =SUM(Y23,Y24) -> 00:01:35.480 | AB25: =SUM(AB23,AB24) -> 00:02:11.830 | AE25: =AE23 -> 3 | AI25: =SUM(AI23:AJ24) -> 00:00:00
C26: Helyezés | D26: =IF(ISBLANK(D23),"",E124) -> 2 | G26: =IF(ISBLANK(G23),"",H124) -> 2 | J26: =IF(ISBLANK(J23),"",K124) -> 1 | M26: =IF(ISBLANK(M23),"",N124) -> 2 | P26: =IF(ISBLANK(P23),"",Q124) -> 3 | S26: =IF(ISBLANK(S23),"",T124) -> 1 | V26: =IF(ISBLANK(V23),"",W124) -> 3 | Y26: =IF(ISBLANK(Y23),"",Z124) -> 1 | AB26: =IF(ISBLANK(AB23),"",AC124) -> 1 | AE26: =IF(ISBLANK(AE23),"",AF124) -> 3 | AI26: =IF(ISBLANK(AI23),0,AJ124) -> 00:00:00
C27: Pont/Összp. | D27: =IF(ISBLANK(D23),"",$C$87-E107+1) -> 4 | E27: =D27 -> 4 | G27: =IF(ISBLANK(G23),"",$C$87-H107+1) -> 4 | H27: =IF(ISBLANK(G23),"",SUM(E27,G27)) -> 8 | J27: =IF(ISBLANK(J23),"",$C$87-K107+1) -> 5 | K27: =IF(ISBLANK(J23),"",SUM(H27,J27)) -> 13 | M27: =IF(ISBLANK(M23),"",$C$87-N107+1) -> 4 | N27: =IF(ISBLANK(M23),"",SUM(K27,M27)) -> 17 | P27: =IF(ISBLANK(P23),"",$C$87-Q107+1) -> 3 | Q27: =IF(ISBLANK(P23),"",SUM(N27,P27)) -> 20 | S27: =IF(ISBLANK(S23),"",$C$87-T107+1) -> 5 | T27: =IF(ISBLANK(S23),"",SUM(Q27,S27)) -> 25 | V27: =IF(ISBLANK(V23),"",$C$87-W107+1) -> 3 | W27: =IF(ISBLANK(V23),"",SUM(T27,V27)) -> 28 | Y27: =IF(ISBLANK(Y23),"",$C$87-Z107+1) -> 5 | Z27: =IF(ISBLANK(Y23),"",SUM(W27,Y27)) -> 33 | AB27: =IF(ISBLANK(AB23),"",$C$87-AC107+1) -> 5 | AC27: =IF(ISBLANK(AB23),"",SUM(Z27,AB27)) -> 38 | AE27: =IF(ISBLANK(AE23),"",$C$87-AF107+1) -> 3 | AF27: =IF(ISBLANK(AE23),"",SUM(AC27,AE27)) -> 41
A28: 6. | C28: Idő (p:mp:tmp): | F28: =IF(ISBLANK(D28),"",RANK(E32,(E$7,E$12,E$17,E$22,E$27,E$32,E$37,E$42,E$47,E$52,E$57,E$62),0)) ->  | I28: =IF(ISBLANK(G28),"",RANK(H32,(H$7,H$12,H$17,H$22,H$27,H$32,H$37,H$42,H$47,H$52,H$57,H$62),0)) ->  | L28: =IF(ISBLANK(J28),"",RANK(K32,(K$7,K$12,K$17,K$22,K$27,K$32,K$37,K$42,K$47,K$52,K$57,K$62),0)) ->  | O28: =IF(ISBLANK(M28),"",RANK(N32,(N$7,N$12,N$17,N$22,N$27,N$32,N$37,N$42,N$47,N$52,N$57,N$62),0)) ->  | R28: =IF(ISBLANK(P28),"",RANK(Q32,(Q$7,Q$12,Q$17,Q$22,Q$27,Q$32,Q$37,Q$42,Q$47,Q$52,Q$57,Q$62),0)) ->  | U28: =IF(ISBLANK(S28),"",RANK(T32,(T$7,T$12,T$17,T$22,T$27,T$32,T$37,T$42,T$47,T$52,T$57,T$62),0)) ->  | X28: =IF(ISBLANK(V28),"",RANK(W32,(W$7,W$12,W$17,W$22,W$27,W$32,W$37,W$42,W$47,W$52,W$57,W$62),0)) ->  | AA28: =IF(ISBLANK(Y28),"",RANK(Z32,(Z$7,Z$12,Z$17,Z$22,Z$27,Z$32,Z$37,Z$42,Z$47,Z$52,Z$57,Z$62),0)) ->  | AD28: =IF(ISBLANK(AB28),"",RANK(AC32,(AC$7,AC$12,AC$17,AC$22,AC$27,AC$32,AC$37,AC$42,AC$47,AC$52,AC$57,AC$62),0)) ->  | AG28: =IF(ISBLANK(D28),"",SUM(D32,G32,J32,M32,P32,S32,V32,Y32,AB32,AE32,AE29)+IF(AI31=0,0,(($C$87-AI31+1)/1000))) ->  | AH28: =IF(ISBLANK(D28),"",RANK(AG28,($AG$3,$AG$8,$AG$13,$AG$18,$AG$23,$AG$28,$AG$33,$AG$38,$AG$43,$AG$48,$AG$53,$AG$58))) -> 
C29: Hiba (p:mp:tmp):
C30: Össz.idő | D30: =SUM(D28,D29) -> 00:00:00 | G30: =SUM(G28,G29) -> 00:00:00 | J30: =SUM(J28,J29) -> 00:00:00 | M30: =SUM(M28,M29) -> 00:00:00 | P30: =SUM(P28,P29) -> 00:00:00 | S30: =SUM(S28,S29) -> 00:00:00 | V30: =SUM(V28,V29) -> 00:00:00 | Y30: =SUM(Y28,Y29) -> 00:00:00 | AB30: =SUM(AB28,AB29) -> 00:00:00 | AE30: =AE28 -> 0 | AI30: =SUM(AI28:AJ29) -> 00:00:00
C31: Helyezés | D31: =IF(ISBLANK(D28),"",E125) ->  | G31: =IF(ISBLANK(G28),"",H125) ->  | J31: =IF(ISBLANK(J28),"",K125) ->  | M31: =IF(ISBLANK(M28),"",N125) ->  | P31: =IF(ISBLANK(P28),"",Q125) ->  | S31: =IF(ISBLANK(S28),"",T125) ->  | V31: =IF(ISBLANK(V28),"",W125) ->  | Y31: =IF(ISBLANK(Y28),"",Z125) ->  | AB31: =IF(ISBLANK(AB28),"",AC125) ->  | AE31: =IF(ISBLANK(AE28),"",AF125) ->  | AI31: =IF(ISBLANK(AI28),0,AJ125) -> 00:00:00
C32: Pont/Összp. | D32: =IF(ISBLANK(D28),"",$C$87-E108+1) ->  | E32: =D32 ->  | G32: =IF(ISBLANK(G28),"",$C$87-H108+1) ->  | H32: =IF(ISBLANK(G28),"",SUM(E32,G32)) ->  | J32: =IF(ISBLANK(J28),"",$C$87-K108+1) ->  | K32: =IF(ISBLANK(J28),"",SUM(H32,J32)) ->  | M32: =IF(ISBLANK(M28),"",$C$87-N108+1) ->  | N32: =IF(ISBLANK(M28),"",SUM(K32,M32)) ->  | P32: =IF(ISBLANK(P28),"",$C$87-Q108+1) ->  | Q32: =IF(ISBLANK(P28),"",SUM(N32,P32)) ->  | S32: =IF(ISBLANK(S28),"",$C$87-T108+1) ->  | T32: =IF(ISBLANK(S28),"",SUM(Q32,S32)) ->  | V32: =IF(ISBLANK(V28),"",$C$87-W108+1) ->  | W32: =IF(ISBLANK(V28),"",SUM(T32,V32)) ->  | Y32: =IF(ISBLANK(Y28),"",$C$87-Z108+1) ->  | Z32: =IF(ISBLANK(Y28),"",SUM(W32,Y32)) ->  | AB32: =IF(ISBLANK(AB28),"",$C$87-AC108+1) ->  | AC32: =IF(ISBLANK(AB28),"",SUM(Z32,AB32)) ->  | AE32: =IF(ISBLANK(AE28),"",$C$87-AF108+1) ->  | AF32: =IF(ISBLANK(AE28),"",SUM(AC32,AE32)) -> 
A33: 7. | C33: Idő (p:mp:tmp): | F33: =IF(ISBLANK(D33),"",RANK(E37,(E$7,E$12,E$17,E$22,E$27,E$32,E$37,E$42,E$47,E$52,E$57,E$62),0)) ->  | I33: =IF(ISBLANK(G33),"",RANK(H37,(H$7,H$12,H$17,H$22,H$27,H$32,H$37,H$42,H$47,H$52,H$57,H$62),0)) ->  | L33: =IF(ISBLANK(J33),"",RANK(K37,(K$7,K$12,K$17,K$22,K$27,K$32,K$37,K$42,K$47,K$52,K$57,K$62),0)) ->  | O33: =IF(ISBLANK(M33),"",RANK(N37,(N$7,N$12,N$17,N$22,N$27,N$32,N$37,N$42,N$47,N$52,N$57,N$62),0)) ->  | R33: =IF(ISBLANK(P33),"",RANK(Q37,(Q$7,Q$12,Q$17,Q$22,Q$27,Q$32,Q$37,Q$42,Q$47,Q$52,Q$57,Q$62),0)) ->  | U33: =IF(ISBLANK(S33),"",RANK(T37,(T$7,T$12,T$17,T$22,T$27,T$32,T$37,T$42,T$47,T$52,T$57,T$62),0)) ->  | X33: =IF(ISBLANK(V33),"",RANK(W37,(W$7,W$12,W$17,W$22,W$27,W$32,W$37,W$42,W$47,W$52,W$57,W$62),0)) ->  | AA33: =IF(ISBLANK(Y33),"",RANK(Z37,(Z$7,Z$12,Z$17,Z$22,Z$27,Z$32,Z$37,Z$42,Z$47,Z$52,Z$57,Z$62),0)) ->  | AD33: =IF(ISBLANK(AB33),"",RANK(AC37,(AC$7,AC$12,AC$17,AC$22,AC$27,AC$32,AC$37,AC$42,AC$47,AC$52,AC$57,AC$62),0)) ->  | AG33: =IF(ISBLANK(D33),"",SUM(D37,G37,J37,M37,P37,S37,V37,Y37,AB37,AE37,AE34)+IF(AI36=0,0,(($C$87-AI36+1)/1000))) ->  | AH33: =IF(ISBLANK(D33),"",RANK(AG33,($AG$3,$AG$8,$AG$13,$AG$18,$AG$23,$AG$28,$AG$33,$AG$38,$AG$43,$AG$48,$AG$53,$AG$58))) -> 
C34: Hiba (p:mp:tmp):
C35: Össz.idő | D35: =SUM(D33,D34) -> 00:00:00 | G35: =SUM(G33,G34) -> 00:00:00 | J35: =SUM(J33,J34) -> 00:00:00 | M35: =SUM(M33,M34) -> 00:00:00 | P35: =SUM(P33,P34) -> 0 | S35: =SUM(S33,S34) -> 00:00:00 | V35: =SUM(V33,V34) -> 00:00:00 | Y35: =SUM(Y33,Y34) -> 00:00:00 | AB35: =SUM(AB33,AB34) -> 00:00:00 | AE35: =AE33 -> 0 | AI35: =SUM(AI33:AJ34) -> 00:00:00
C36: Helyezés | D36: =IF(ISBLANK(D33),"",E126) ->  | G36: =IF(ISBLANK(G33),"",H126) ->  | J36: =IF(ISBLANK(J33),"",K126) ->  | M36: =IF(ISBLANK(M33),"",N126) ->  | P36: =IF(ISBLANK(P33),"",Q126) ->  | S36: =IF(ISBLANK(S33),"",T126) ->  | V36: =IF(ISBLANK(V33),"",W126) ->  | Y36: =IF(ISBLANK(Y33),"",Z126) ->  | AB36: =IF(ISBLANK(AB33),"",AC126) ->  | AE36: =IF(ISBLANK(AE33),"",AF126) ->  | AI36: =IF(ISBLANK(AI33),0,AJ126) -> 00:00:00
C37: Pont/Összp. | D37: =IF(ISBLANK(D33),"",$C$87-E109+1) ->  | E37: =D37 ->  | G37: =IF(ISBLANK(G33),"",$C$87-H109+1) ->  | H37: =IF(ISBLANK(G33),"",SUM(E37,G37)) ->  | J37: =IF(ISBLANK(J33),"",$C$87-K109+1) ->  | K37: =IF(ISBLANK(J33),"",SUM(H37,J37)) ->  | M37: =IF(ISBLANK(M33),"",$C$87-N109+1) ->  | N37: =IF(ISBLANK(M33),"",SUM(K37,M37)) ->  | P37: =IF(ISBLANK(P33),"",$C$87-Q109+1) ->  | Q37: =IF(ISBLANK(P33),"",SUM(N37,P37)) ->  | S37: =IF(ISBLANK(S33),"",$C$87-T109+1) ->  | T37: =IF(ISBLANK(S33),"",SUM(Q37,S37)) ->  | V37: =IF(ISBLANK(V33),"",$C$87-W109+1) ->  | W37: =IF(ISBLANK(V33),"",SUM(T37,V37)) ->  | Y37: =IF(ISBLANK(Y33),"",$C$87-Z109+1) ->  | Z37: =IF(ISBLANK(Y33),"",SUM(W37,Y37)) ->  | AB37: =IF(ISBLANK(AB33),"",$C$87-AC109+1) ->  | AC37: =IF(ISBLANK(AB33),"",SUM(Z37,AB37)) ->  | AE37: =IF(ISBLANK(AE33),"",$C$87-AF109+1) ->  | AF37: =IF(ISBLANK(AE33),"",SUM(AC37,AE37)) -> 
A38: 8. | C38: Idő (p:mp:tmp): | F38: =IF(ISBLANK(D38),"",RANK(E42,(E$7,E$12,E$17,E$22,E$27,E$32,E$37,E$42,E$47,E$52,E$57,E$62),0)) ->  | I38: =IF(ISBLANK(G38),"",RANK(H42,(H$7,H$12,H$17,H$22,H$27,H$32,H$37,H$42,H$47,H$52,H$57,H$62),0)) ->  | L38: =IF(ISBLANK(J38),"",RANK(K42,(K$7,K$12,K$17,K$22,K$27,K$32,K$37,K$42,K$47,K$52,K$57,K$62),0)) ->  | O38: =IF(ISBLANK(M38),"",RANK(N42,(N$7,N$12,N$17,N$22,N$27,N$32,N$37,N$42,N$47,N$52,N$57,N$62),0)) ->  | R38: =IF(ISBLANK(P38),"",RANK(Q42,(Q$7,Q$12,Q$17,Q$22,Q$27,Q$32,Q$37,Q$42,Q$47,Q$52,Q$57,Q$62),0)) ->  | U38: =IF(ISBLANK(S38),"",RANK(T42,(T$7,T$12,T$17,T$22,T$27,T$32,T$37,T$42,T$47,T$52,T$57,T$62),0)) ->  | X38: =IF(ISBLANK(V38),"",RANK(W42,(W$7,W$12,W$17,W$22,W$27,W$32,W$37,W$42,W$47,W$52,W$57,W$62),0)) ->  | AA38: =IF(ISBLANK(Y38),"",RANK(Z42,(Z$7,Z$12,Z$17,Z$22,Z$27,Z$32,Z$37,Z$42,Z$47,Z$52,Z$57,Z$62),0)) ->  | AD38: =IF(ISBLANK(AB38),"",RANK(AC42,(AC$7,AC$12,AC$17,AC$22,AC$27,AC$32,AC$37,AC$42,AC$47,AC$52,AC$57,AC$62),0)) ->  | AG38: =IF(ISBLANK(D38),"",SUM(D42,G42,J42,M42,P42,S42,V42,Y42,AB42,AE42,AE39)+IF(AI41=0,0,(($C$87-AI41+1)/1000))) ->  | AH38: =IF(ISBLANK(D38),"",RANK(AG38,($AG$3,$AG$8,$AG$13,$AG$18,$AG$23,$AG$28,$AG$33,$AG$38,$AG$43,$AG$48,$AG$53,$AG$58))) -> 
C39: Hiba (p:mp:tmp):
C40: Össz.idő | D40: =SUM(D38,D39) -> 00:00:00 | G40: =SUM(G38,G39) -> 00:00:00 | J40: =SUM(J38,J39) -> 00:00:00 | M40: =SUM(M38,M39) -> 00:00:00 | P40: =SUM(P38,P39) -> 0 | S40: =SUM(S38,S39) -> 00:00:00 | V40: =SUM(V38,V39) -> 00:00:00 | Y40: =SUM(Y38,Y39) -> 00:00:00 | AB40: =SUM(AB38,AB39) -> 00:00:00 | AE40: =AE38 -> 0 | AI40: =SUM(AI38:AJ39) -> 00:00:00
C41: Helyezés | D41: =IF(ISBLANK(D38),"",E127) ->  | G41: =IF(ISBLANK(G38),"",H127) ->  | J41: =IF(ISBLANK(J38),"",K127) ->  | M41: =IF(ISBLANK(M38),"",N127) ->  | P41: =IF(ISBLANK(P38),"",Q127) ->  | S41: =IF(ISBLANK(S38),"",T127) ->  | V41: =IF(ISBLANK(V38),"",W127) ->  | Y41: =IF(ISBLANK(Y38),"",Z127) ->  | AB41: =IF(ISBLANK(AB38),"",AC127) ->  | AE41: =IF(ISBLANK(AE38),"",AF127) ->  | AI41: =IF(ISBLANK(AI38),0,AJ127) -> 00:00:00
C42: Pont/Összp. | D42: =IF(ISBLANK(D38),"",$C$87-E110+1) ->  | E42: =D42 ->  | G42: =IF(ISBLANK(G38),"",$C$87-H110+1) ->  | H42: =IF(ISBLANK(G38),"",SUM(E42,G42)) ->  | J42: =IF(ISBLANK(J38),"",$C$87-K110+1) ->  | K42: =IF(ISBLANK(J38),"",SUM(H42,J42)) ->  | M42: =IF(ISBLANK(M38),"",$C$87-N110+1) ->  | N42: =IF(ISBLANK(M38),"",SUM(K42,M42)) ->  | P42: =IF(ISBLANK(P38),"",$C$87-Q110+1) ->  | Q42: =IF(ISBLANK(P38),"",SUM(N42,P42)) ->  | S42: =IF(ISBLANK(S38),"",$C$87-T110+1) ->  | T42: =IF(ISBLANK(S38),"",SUM(Q42,S42)) ->  | V42: =IF(ISBLANK(V38),"",$C$87-W110+1) ->  | W42: =IF(ISBLANK(V38),"",SUM(T42,V42)) ->  | Y42: =IF(ISBLANK(Y38),"",$C$87-Z110+1) ->  | Z42: =IF(ISBLANK(Y38),"",SUM(W42,Y42)) ->  | AB42: =IF(ISBLANK(AB38),"",$C$87-AC110+1) ->  | AC42: =IF(ISBLANK(AB38),"",SUM(Z42,AB42)) ->  | AE42: =IF(ISBLANK(AE38),"",$C$87-AF110+1) ->  | AF42: =IF(ISBLANK(AE38),"",SUM(AC42,AE42)) -> 
A43: 9. | C43: Idő (p:mp:tmp): | F43: =IF(ISBLANK(D43),"",RANK(E47,(E$7,E$12,E$17,E$22,E$27,E$32,E$37,E$42,E$47,E$52,E$57,E$62),0)) ->  | I43: =IF(ISBLANK(G43),"",RANK(H47,(H$7,H$12,H$17,H$22,H$27,H$32,H$37,H$42,H$47,H$52,H$57,H$62),0)) ->  | L43: =IF(ISBLANK(J43),"",RANK(K47,(K$7,K$12,K$17,K$22,K$27,K$32,K$37,K$42,K$47,K$52,K$57,K$62),0)) ->  | O43: =IF(ISBLANK(M43),"",RANK(N47,(N$7,N$12,N$17,N$22,N$27,N$32,N$37,N$42,N$47,N$52,N$57,N$62),0)) ->  | R43: =IF(ISBLANK(P43),"",RANK(Q47,(Q$7,Q$12,Q$17,Q$22,Q$27,Q$32,Q$37,Q$42,Q$47,Q$52,Q$57,Q$62),0)) ->  | U43: =IF(ISBLANK(S43),"",RANK(T47,(T$7,T$12,T$17,T$22,T$27,T$32,T$37,T$42,T$47,T$52,T$57,T$62),0)) ->  | X43: =IF(ISBLANK(V43),"",RANK(W47,(W$7,W$12,W$17,W$22,W$27,W$32,W$37,W$42,W$47,W$52,W$57,W$62),0)) ->  | AA43: =IF(ISBLANK(Y43),"",RANK(Z47,(Z$7,Z$12,Z$17,Z$22,Z$27,Z$32,Z$37,Z$42,Z$47,Z$52,Z$57,Z$62),0)) ->  | AD43: =IF(ISBLANK(AB43),"",RANK(AC47,(AC$7,AC$12,AC$17,AC$22,AC$27,AC$32,AC$37,AC$42,AC$47,AC$52,AC$57,AC$62),0)) ->  | AG43: =IF(ISBLANK(D43),"",SUM(D47,G47,J47,M47,P47,S47,V47,Y47,AB47,AE47,AE44)+IF(AI46=0,0,(($C$87-AI46+1)/1000))) ->  | AH43: =IF(ISBLANK(D43),"",RANK(AG43,($AG$3,$AG$8,$AG$13,$AG$18,$AG$23,$AG$28,$AG$33,$AG$38,$AG$43,$AG$48,$AG$53,$AG$58))) -> 
C44: Hiba (p:mp:tmp):
C45: Össz.idő | D45: =SUM(D43,D44) -> 00:00:00 | G45: =SUM(G43,G44) -> 00:00:00 | J45: =SUM(J43,J44) -> 00:00:00 | M45: =SUM(M43,M44) -> 00:00:00 | P45: =SUM(P43,P44) -> 0 | S45: =SUM(S43,S44) -> 00:00:00 | V45: =SUM(V43,V44) -> 00:00:00 | Y45: =SUM(Y43,Y44) -> 00:00:00 | AB45: =SUM(AB43,AB44) -> 00:00:00 | AE45: =AE43 -> 0 | AI45: =SUM(AI43:AJ44) -> 00:00:00
C46: Helyezés | D46: =IF(ISBLANK(D43),"",E128) ->  | G46: =IF(ISBLANK(G43),"",H128) ->  | J46: =IF(ISBLANK(J43),"",K128) ->  | M46: =IF(ISBLANK(M43),"",N128) ->  | P46: =IF(ISBLANK(P43),"",Q128) ->  | S46: =IF(ISBLANK(S43),"",T128) ->  | V46: =IF(ISBLANK(V43),"",W128) ->  | Y46: =IF(ISBLANK(Y43),"",Z128) ->  | AB46: =IF(ISBLANK(AB43),"",AC128) ->  | AE46: =IF(ISBLANK(AE43),"",AF128) ->  | AI46: =IF(ISBLANK(AI43),0,AJ128) -> 00:00:00
C47: Pont/Összp. | D47: =IF(ISBLANK(D43),"",$C$87-E111+1) ->  | E47: =D47 ->  | G47: =IF(ISBLANK(G43),"",$C$87-H111+1) ->  | H47: =IF(ISBLANK(G43),"",SUM(E47,G47)) ->  | J47: =IF(ISBLANK(J43),"",$C$87-K111+1) ->  | K47: =IF(ISBLANK(J43),"",SUM(H47,J47)) ->  | M47: =IF(ISBLANK(M43),"",$C$87-N111+1) ->  | N47: =IF(ISBLANK(M43),"",SUM(K47,M47)) ->  | P47: =IF(ISBLANK(P43),"",$C$87-Q111+1) ->  | Q47: =IF(ISBLANK(P43),"",SUM(N47,P47)) ->  | S47: =IF(ISBLANK(S43),"",$C$87-T111+1) ->  | T47: =IF(ISBLANK(S43),"",SUM(Q47,S47)) ->  | V47: =IF(ISBLANK(V43),"",$C$87-W111+1) ->  | W47: =IF(ISBLANK(V43),"",SUM(T47,V47)) ->  | Y47: =IF(ISBLANK(Y43),"",$C$87-Z111+1) ->  | Z47: =IF(ISBLANK(Y43),"",SUM(W47,Y47)) ->  | AB47: =IF(ISBLANK(AB43),"",$C$87-AC111+1) ->  | AC47: =IF(ISBLANK(AB43),"",SUM(Z47,AB47)) ->  | AE47: =IF(ISBLANK(AE43),"",$C$87-AF111+1) ->  | AF47: =IF(ISBLANK(AE43),"",SUM(AC47,AE47)) -> 
A48: 10. | C48: Idő (p:mp:tmp): | F48: =IF(ISBLANK(D48),"",RANK(E52,(E$7,E$12,E$17,E$22,E$27,E$32,E$37,E$42,E$47,E$52,E$57,E$62),0)) ->  | I48: =IF(ISBLANK(G48),"",RANK(H52,(H$7,H$12,H$17,H$22,H$27,H$32,H$37,H$42,H$47,H$52,H$57,H$62),0)) ->  | L48: =IF(ISBLANK(J48),"",RANK(K52,(K$7,K$12,K$17,K$22,K$27,K$32,K$37,K$42,K$47,K$52,K$57,K$62),0)) ->  | O48: =IF(ISBLANK(M48),"",RANK(N52,(N$7,N$12,N$17,N$22,N$27,N$32,N$37,N$42,N$47,N$52,N$57,N$62),0)) ->  | R48: =IF(ISBLANK(P48),"",RANK(Q52,(Q$7,Q$12,Q$17,Q$22,Q$27,Q$32,Q$37,Q$42,Q$47,Q$52,Q$57,Q$62),0)) ->  | U48: =IF(ISBLANK(S48),"",RANK(T52,(T$7,T$12,T$17,T$22,T$27,T$32,T$37,T$42,T$47,T$52,T$57,T$62),0)) ->  | X48: =IF(ISBLANK(V48),"",RANK(W52,(W$7,W$12,W$17,W$22,W$27,W$32,W$37,W$42,W$47,W$52,W$57,W$62),0)) ->  | AA48: =IF(ISBLANK(Y48),"",RANK(Z52,(Z$7,Z$12,Z$17,Z$22,Z$27,Z$32,Z$37,Z$42,Z$47,Z$52,Z$57,Z$62),0)) ->  | AD48: =IF(ISBLANK(AB48),"",RANK(AC52,(AC$7,AC$12,AC$17,AC$22,AC$27,AC$32,AC$37,AC$42,AC$47,AC$52,AC$57,AC$62),0)) ->  | AG48: =IF(ISBLANK(D48),"",SUM(D52,G52,J52,M52,P52,S52,V52,Y52,AB52,AE52,AE49)+IF(AI51=0,0,(($C$87-AI51+1)/1000))) ->  | AH48: =IF(ISBLANK(D48),"",RANK(AG48,($AG$3,$AG$8,$AG$13,$AG$18,$AG$23,$AG$28,$AG$33,$AG$38,$AG$43,$AG$48,$AG$53,$AG$58))) -> 
C49: Hiba (p:mp:tmp):
C50: Össz.idő | D50: =SUM(D48,D49) -> 00:00:00 | G50: =SUM(G48,G49) -> 00:00:00 | J50: =SUM(J48,J49) -> 00:00:00 | M50: =SUM(M48,M49) -> 00:00:00 | P50: =SUM(P48,P49) -> 0 | S50: =SUM(S48,S49) -> 00:00:00 | V50: =SUM(V48,V49) -> 00:00:00 | Y50: =SUM(Y48,Y49) -> 00:00:00 | AB50: =SUM(AB48,AB49) -> 00:00:00 | AE50: =AE48 -> 0 | AI50: =SUM(AI48:AJ49) -> 00:00:00
C51: Helyezés | D51: =IF(ISBLANK(D48),"",E129) ->  | G51: =IF(ISBLANK(G48),"",H129) ->  | J51: =IF(ISBLANK(J48),"",K129) ->  | M51: =IF(ISBLANK(M48),"",N129) ->  | P51: =IF(ISBLANK(P48),"",Q129) ->  | S51: =IF(ISBLANK(S48),"",T129) ->  | V51: =IF(ISBLANK(V48),"",W129) ->  | Y51: =IF(ISBLANK(Y48),"",Z129) ->  | AB51: =IF(ISBLANK(AB48),"",AC129) ->  | AE51: =IF(ISBLANK(AE48),"",AF129) ->  | AI51: =IF(ISBLANK(AI48),0,AJ129) -> 00:00:00
C52: Pont/Összp. | D52: =IF(ISBLANK(D48),"",$C$87-E112+1) ->  | E52: =D52 ->  | G52: =IF(ISBLANK(G48),"",$C$87-H112+1) ->  | H52: =IF(ISBLANK(G48),"",SUM(E52,G52)) ->  | J52: =IF(ISBLANK(J48),"",$C$87-K112+1) ->  | K52: =IF(ISBLANK(J48),"",SUM(H52,J52)) ->  | M52: =IF(ISBLANK(M48),"",$C$87-N112+1) ->  | N52: =IF(ISBLANK(M48),"",SUM(K52,M52)) ->  | P52: =IF(ISBLANK(P48),"",$C$87-Q112+1) ->  | Q52: =IF(ISBLANK(P48),"",SUM(N52,P52)) ->  | S52: =IF(ISBLANK(S48),"",$C$87-T112+1) ->  | T52: =IF(ISBLANK(S48),"",SUM(Q52,S52)) ->  | V52: =IF(ISBLANK(V48),"",$C$87-W112+1) ->  | W52: =IF(ISBLANK(V48),"",SUM(T52,V52)) ->  | Y52: =IF(ISBLANK(Y48),"",$C$87-Z112+1) ->  | Z52: =IF(ISBLANK(Y48),"",SUM(W52,Y52)) ->  | AB52: =IF(ISBLANK(AB48),"",$C$87-AC112+1) ->  | AC52: =IF(ISBLANK(AB48),"",SUM(Z52,AB52)) ->  | AE52: =IF(ISBLANK(AE48),"",$C$87-AF112+1) ->  | AF52: =IF(ISBLANK(AE48),"",SUM(AC52,AE52)) -> 
A53: 11. | C53: Idő (p:mp:tmp): | F53: =IF(ISBLANK(D53),"",RANK(E57,(E$7,E$12,E$17,E$22,E$27,E$32,E$37,E$42,E$47,E$52,E$57,E$62),0)) ->  | I53: =IF(ISBLANK(G53),"",RANK(H57,(H$7,H$12,H$17,H$22,H$27,H$32,H$37,H$42,H$47,H$52,H$57,H$62),0)) ->  | L53: =IF(ISBLANK(J53),"",RANK(K57,(K$7,K$12,K$17,K$22,K$27,K$32,K$37,K$42,K$47,K$52,K$57,K$62),0)) ->  | O53: =IF(ISBLANK(M53),"",RANK(N57,(N$7,N$12,N$17,N$22,N$27,N$32,N$37,N$42,N$47,N$52,N$57,N$62),0)) ->  | R53: =IF(ISBLANK(P53),"",RANK(Q57,(Q$7,Q$12,Q$17,Q$22,Q$27,Q$32,Q$37,Q$42,Q$47,Q$52,Q$57,Q$62),0)) ->  | U53: =IF(ISBLANK(S53),"",RANK(T57,(T$7,T$12,T$17,T$22,T$27,T$32,T$37,T$42,T$47,T$52,T$57,T$62),0)) ->  | X53: =IF(ISBLANK(V53),"",RANK(W57,(W$7,W$12,W$17,W$22,W$27,W$32,W$37,W$42,W$47,W$52,W$57,W$62),0)) ->  | AA53: =IF(ISBLANK(Y53),"",RANK(Z57,(Z$7,Z$12,Z$17,Z$22,Z$27,Z$32,Z$37,Z$42,Z$47,Z$52,Z$57,Z$62),0)) ->  | AD53: =IF(ISBLANK(AB53),"",RANK(AC57,(AC$7,AC$12,AC$17,AC$22,AC$27,AC$32,AC$37,AC$42,AC$47,AC$52,AC$57,AC$62),0)) ->  | AG53: =IF(ISBLANK(D53),"",SUM(D57,G57,J57,M57,P57,S57,V57,Y57,AB57,AE57,AE54)+IF(AI56=0,0,(($C$87-AI56+1)/1000))) ->  | AH53: =IF(ISBLANK(D53),"",RANK(AG53,($AG$3,$AG$8,$AG$13,$AG$18,$AG$23,$AG$28,$AG$33,$AG$38,$AG$43,$AG$48,$AG$53,$AG$58))) -> 
C54: Hiba (p:mp:tmp):
C55: Össz.idő | D55: =SUM(D53,D54) -> 00:00:00 | G55: =SUM(G53,G54) -> 00:00:00 | J55: =SUM(J53,J54) -> 00:00:00 | M55: =SUM(M53,M54) -> 00:00:00 | P55: =SUM(P53,P54) -> 0 | S55: =SUM(S53,S54) -> 00:00:00 | V55: =SUM(V53,V54) -> 00:00:00 | Y55: =SUM(Y53,Y54) -> 00:00:00 | AB55: =SUM(AB53,AB54) -> 00:00:00 | AE55: =AE53 -> 0 | AI55: =SUM(AI53:AJ54) -> 00:00:00
C56: Helyezés | D56: =IF(ISBLANK(D53),"",E130) ->  | G56: =IF(ISBLANK(G53),"",H130) ->  | J56: =IF(ISBLANK(J53),"",K130) ->  | M56: =IF(ISBLANK(M53),"",N130) ->  | P56: =IF(ISBLANK(P53),"",Q130) ->  | S56: =IF(ISBLANK(S53),"",T130) ->  | V56: =IF(ISBLANK(V53),"",W130) ->  | Y56: =IF(ISBLANK(Y53),"",Z130) ->  | AB56: =IF(ISBLANK(AB53),"",AC130) ->  | AE56: =IF(ISBLANK(AE53),"",AF130) ->  | AI56: =IF(ISBLANK(AI53),0,AJ130) -> 00:00:00
C57: Pont/Összp. | D57: =IF(ISBLANK(D53),"",$C$87-E113+1) ->  | E57: =D57 ->  | G57: =IF(ISBLANK(G53),"",$C$87-H113+1) ->  | H57: =IF(ISBLANK(G53),"",SUM(E57,G57)) ->  | J57: =IF(ISBLANK(J53),"",$C$87-K113+1) ->  | K57: =IF(ISBLANK(J53),"",SUM(H57,J57)) ->  | M57: =IF(ISBLANK(M53),"",$C$87-N113+1) ->  | N57: =IF(ISBLANK(M53),"",SUM(K57,M57)) ->  | P57: =IF(ISBLANK(P53),"",$C$87-Q113+1) ->  | Q57: =IF(ISBLANK(P53),"",SUM(N57,P57)) ->  | S57: =IF(ISBLANK(S53),"",$C$87-T113+1) ->  | T57: =IF(ISBLANK(S53),"",SUM(Q57,S57)) ->  | V57: =IF(ISBLANK(V53),"",$C$87-W113+1) ->  | W57: =IF(ISBLANK(V53),"",SUM(T57,V57)) ->  | Y57: =IF(ISBLANK(Y53),"",$C$87-Z113+1) ->  | Z57: =IF(ISBLANK(Y53),"",SUM(W57,Y57)) ->  | AB57: =IF(ISBLANK(AB53),"",$C$87-AC113+1) ->  | AC57: =IF(ISBLANK(AB53),"",SUM(Z57,AB57)) ->  | AE57: =IF(ISBLANK(AE53),"",$C$87-AF113+1) ->  | AF57: =IF(ISBLANK(AE53),"",SUM(AC57,AE57)) -> 
A58: 12. | C58: Idő (p:mp:tmp): | F58: =IF(ISBLANK(D58),"",RANK(E62,(E$7,E$12,E$17,E$22,E$27,E$32,E$37,E$42,E$47,E$52,E$57,E$62),0)) ->  | I58: =IF(ISBLANK(G58),"",RANK(H62,(H$7,H$12,H$17,H$22,H$27,H$32,H$37,H$42,H$47,H$52,H$57,H$62),0)) ->  | L58: =IF(ISBLANK(J58),"",RANK(K62,(K$7,K$12,K$17,K$22,K$27,K$32,K$37,K$42,K$47,K$52,K$57,K$62),0)) ->  | O58: =IF(ISBLANK(M58),"",RANK(N62,(N$7,N$12,N$17,N$22,N$27,N$32,N$37,N$42,N$47,N$52,N$57,N$62),0)) ->  | R58: =IF(ISBLANK(P58),"",RANK(Q62,(Q$7,Q$12,Q$17,Q$22,Q$27,Q$32,Q$37,Q$42,Q$47,Q$52,Q$57,Q$62),0)) ->  | U58: =IF(ISBLANK(S58),"",RANK(T62,(T$7,T$12,T$17,T$22,T$27,T$32,T$37,T$42,T$47,T$52,T$57,T$62),0)) ->  | X58: =IF(ISBLANK(V58),"",RANK(W62,(W$7,W$12,W$17,W$22,W$27,W$32,W$37,W$42,W$47,W$52,W$57,W$62),0)) ->  | AA58: =IF(ISBLANK(Y58),"",RANK(Z62,(Z$7,Z$12,Z$17,Z$22,Z$27,Z$32,Z$37,Z$42,Z$47,Z$52,Z$57,Z$62),0)) ->  | AD58: =IF(ISBLANK(AB58),"",RANK(AC62,(AC$7,AC$12,AC$17,AC$22,AC$27,AC$32,AC$37,AC$42,AC$47,AC$52,AC$57,AC$62),0)) ->  | AG58: =IF(ISBLANK(D58),"",SUM(D62,G62,J62,M62,P62,S62,V62,Y62,AB62,AE62,AE59)+IF(AI61=0,0,(($C$87-AI61+1)/1000))) ->  | AH58: =IF(ISBLANK(D58),"",RANK(AG58,($AG$3,$AG$8,$AG$13,$AG$18,$AG$23,$AG$28,$AG$33,$AG$38,$AG$43,$AG$48,$AG$53,$AG$58))) -> 
C59: Hiba (p:mp:tmp):
C60: Össz.idő | D60: =SUM(D58,D59) -> 00:00:00 | G60: =SUM(G58,G59) -> 00:00:00 | J60: =SUM(J58,J59) -> 00:00:00 | M60: =SUM(M58,M59) -> 00:00:00 | P60: =SUM(P58,P59) -> 0 | S60: =SUM(S58,S59) -> 00:00:00 | V60: =SUM(V58,V59) -> 00:00:00 | Y60: =SUM(Y58,Y59) -> 00:00:00 | AB60: =SUM(AB58,AB59) -> 00:00:00 | AE60: =AE58 -> 0 | AI60: =SUM(AI58:AJ59) -> 00:00:00
C61: Helyezés | D61: =IF(ISBLANK(D58),"",E131) ->  | G61: =IF(ISBLANK(G58),"",H131) ->  | J61: =IF(ISBLANK(J58),"",K131) ->  | M61: =IF(ISBLANK(M58),"",N131) ->  | P61: =IF(ISBLANK(P58),"",Q131) ->  | S61: =IF(ISBLANK(S58),"",T131) ->  | V61: =IF(ISBLANK(V58),"",W131) ->  | Y61: =IF(ISBLANK(Y58),"",Z131) ->  | AB61: =IF(ISBLANK(AB58),"",AC131) ->  | AE61: =IF(ISBLANK(AE58),"",AF131) ->  | AI61: =IF(ISBLANK(AI58),0,AJ131) -> 00:00:00
C62: Pont/Összp. | D62: =IF(ISBLANK(D58),"",$C$87-E114+1) ->  | E62: =D62 ->  | G62: =IF(ISBLANK(G58),"",$C$87-H114+1) ->  | H62: =IF(ISBLANK(G58),"",SUM(E62,G62)) ->  | J62: =IF(ISBLANK(J58),"",$C$87-K114+1) ->  | K62: =IF(ISBLANK(J58),"",SUM(H62,J62)) ->  | M62: =IF(ISBLANK(M58),"",$C$87-N114+1) ->  | N62: =IF(ISBLANK(M58),"",SUM(K62,M62)) ->  | P62: =IF(ISBLANK(P58),"",$C$87-Q114+1) ->  | Q62: =IF(ISBLANK(P58),"",SUM(N62,P62)) ->  | S62: =IF(ISBLANK(S58),"",$C$87-T114+1) ->  | T62: =IF(ISBLANK(S58),"",SUM(Q62,S62)) ->  | V62: =IF(ISBLANK(V58),"",$C$87-W114+1) ->  | W62: =IF(ISBLANK(V58),"",SUM(T62,V62)) ->  | Y62: =IF(ISBLANK(Y58),"",$C$87-Z114+1) ->  | Z62: =IF(ISBLANK(Y58),"",SUM(W62,Y62)) ->  | AB62: =IF(ISBLANK(AB58),"",$C$87-AC114+1) ->  | AC62: =IF(ISBLANK(AB58),"",SUM(Z62,AB62)) ->  | AE62: =IF(ISBLANK(AE58),"",$C$87-AF114+1) ->  | AF62: =IF(ISBLANK(AE58),"",SUM(AC62,AE62)) -> 
B87: csapatok száma | C87: =COUNTA(B3:B62) -> 5 | D87: =IF(E1="idő",1,0) -> 1 | G87: =IF(H1="idő",1,0) -> 1 | J87: =IF(K1="idő",1,0) -> 1 | M87: =IF(N1="idő",1,0) -> 1 | P87: =IF(Q1="idő",1,0) -> 1 | S87: =IF(T1="idő",1,0) -> 1 | V87: =IF(W1="idő",1,0) -> 1 | Y87: =IF(Z1="idő",1,0) -> 1 | AB87: =IF(AC1="idő",1,0) -> 1 | AE87: =IF(OR(AF1="idő",AF1="helyezés"),1,0) -> 1 | AI87: =IF(OR(AJ1="idő",AJ1="helyezés"),1,0) -> 1
B88: 1 | C88: 0
B89: 2 | C89: 1 | D89: =D6 -> 3 | E89: =IF(COUNTIF(D$89:D$99,D89)=1,D89,(COUNTIF(D$89:D$99,D89)*D89+VLOOKUP(COUNTIF(D$89:D$99,D89),$B$89:$C$99,2))/COUNTIF(D$89:D$99,D89)) -> 3 | G89: =G6 -> 5 | H89: =IF(COUNTIF(G$89:G$99,G89)=1,G89,(COUNTIF(G$89:G$99,G89)*G89+VLOOKUP(COUNTIF(G$89:G$99,G89),$B$89:$C$99,2))/COUNTIF(G$89:G$99,G89)) -> 5 | J89: =J6 -> 5 | K89: =IF(COUNTIF(J$89:J$99,J89)=1,J89,(COUNTIF(J$89:J$99,J89)*J89+VLOOKUP(COUNTIF(J$89:J$99,J89),$B$89:$C$99,2))/COUNTIF(J$89:J$99,J89)) -> 5 | M89: =M6 -> 4 | N89: =IF(COUNTIF(M$89:M$99,M89)=1,M89,(COUNTIF(M$89:M$99,M89)*M89+VLOOKUP(COUNTIF(M$89:M$99,M89),$B$89:$C$99,2))/COUNTIF(M$89:M$99,M89)) -> 4 | P89: =P6 -> 4 | Q89: =IF(COUNTIF(P$89:P$99,P89)=1,P89,(COUNTIF(P$89:P$99,P89)*P89+VLOOKUP(COUNTIF(P$89:P$99,P89),$B$89:$C$99,2))/COUNTIF(P$89:P$99,P89)) -> 4 | S89: =S6 -> 5 | T89: =IF(COUNTIF(S$89:S$99,S89)=1,S89,(COUNTIF(S$89:S$99,S89)*S89+VLOOKUP(COUNTIF(S$89:S$99,S89),$B$89:$C$99,2))/COUNTIF(S$89:S$99,S89)) -> 5 | V89: =V6 -> 4 | W89: =IF(COUNTIF(V$89:V$99,V89)=1,V89,(COUNTIF(V$89:V$99,V89)*V89+VLOOKUP(COUNTIF(V$89:V$99,V89),$B$89:$C$99,2))/COUNTIF(V$89:V$99,V89)) -> 4 | Y89: =Y6 -> 5 | Z89: =IF(COUNTIF(Y$89:Y$99,Y89)=1,Y89,(COUNTIF(Y$89:Y$99,Y89)*Y89+VLOOKUP(COUNTIF(Y$89:Y$99,Y89),$B$89:$C$99,2))/COUNTIF(Y$89:Y$99,Y89)) -> 5 | AB89: =AB6 -> 5 | AC89: =IF(COUNTIF(AB$89:AB$99,AB89)=1,AB89,(COUNTIF(AB$89:AB$99,AB89)*AB89+VLOOKUP(COUNTIF(AB$89:AB$99,AB89),$B$89:$C$99,2))/COUNTIF(AB$89:AB$99,AB89)) -> 5 | AE89: =AE6 -> 2 | AF89: =IF(COUNTIF(AE$89:AE$99,AE89)=1,AE89,(COUNTIF(AE$89:AE$99,AE89)*AE89+VLOOKUP(COUNTIF(AE$89:AE$99,AE89),$B$89:$C$99,2))/COUNTIF(AE$89:AE$99,AE89)) -> 2 | AI89: =AI6 -> 0 | AJ89: =IF(COUNTIF(AI$89:AI$99,AI89)=1,AI89,(COUNTIF(AI$89:AI$99,AI89)*AI89+VLOOKUP(COUNTIF(AI$89:AI$99,AI89),$B$89:$C$99,2))/COUNTIF(AI$89:AI$99,AI89)) -> 5
B90: 3 | C90: 3 | D90: =D11 -> 5 | E90: =IF(COUNTIF(D$89:D$99,D90)=1,D90,(COUNTIF(D$89:D$99,D90)*D90+VLOOKUP(COUNTIF(D$89:D$99,D90),$B$89:$C$99,2))/COUNTIF(D$89:D$99,D90)) -> 5 | G90: =G11 -> 4 | H90: =IF(COUNTIF(G$89:G$99,G90)=1,G90,(COUNTIF(G$89:G$99,G90)*G90+VLOOKUP(COUNTIF(G$89:G$99,G90),$B$89:$C$99,2))/COUNTIF(G$89:G$99,G90)) -> 4 | J90: =J11 -> 4 | K90: =IF(COUNTIF(J$89:J$99,J90)=1,J90,(COUNTIF(J$89:J$99,J90)*J90+VLOOKUP(COUNTIF(J$89:J$99,J90),$B$89:$C$99,2))/COUNTIF(J$89:J$99,J90)) -> 4 | M90: =M11 -> 5 | N90: =IF(COUNTIF(M$89:M$99,M90)=1,M90,(COUNTIF(M$89:M$99,M90)*M90+VLOOKUP(COUNTIF(M$89:M$99,M90),$B$89:$C$99,2))/COUNTIF(M$89:M$99,M90)) -> 5 | P90: =P11 -> 1 | Q90: =IF(COUNTIF(P$89:P$99,P90)=1,P90,(COUNTIF(P$89:P$99,P90)*P90+VLOOKUP(COUNTIF(P$89:P$99,P90),$B$89:$C$99,2))/COUNTIF(P$89:P$99,P90)) -> 1 | S90: =S11 -> 4 | T90: =IF(COUNTIF(S$89:S$99,S90)=1,S90,(COUNTIF(S$89:S$99,S90)*S90+VLOOKUP(COUNTIF(S$89:S$99,S90),$B$89:$C$99,2))/COUNTIF(S$89:S$99,S90)) -> 4 | V90: =V11 -> 2 | W90: =IF(COUNTIF(V$89:V$99,V90)=1,V90,(COUNTIF(V$89:V$99,V90)*V90+VLOOKUP(COUNTIF(V$89:V$99,V90),$B$89:$C$99,2))/COUNTIF(V$89:V$99,V90)) -> 2 | Y90: =Y11 -> 3 | Z90: =IF(COUNTIF(Y$89:Y$99,Y90)=1,Y90,(COUNTIF(Y$89:Y$99,Y90)*Y90+VLOOKUP(COUNTIF(Y$89:Y$99,Y90),$B$89:$C$99,2))/COUNTIF(Y$89:Y$99,Y90)) -> 3 | AB90: =AB11 -> 4 | AC90: =IF(COUNTIF(AB$89:AB$99,AB90)=1,AB90,(COUNTIF(AB$89:AB$99,AB90)*AB90+VLOOKUP(COUNTIF(AB$89:AB$99,AB90),$B$89:$C$99,2))/COUNTIF(AB$89:AB$99,AB90)) -> 4 | AE90: =AE11 -> 1 | AF90: =IF(COUNTIF(AE$89:AE$99,AE90)=1,AE90,(COUNTIF(AE$89:AE$99,AE90)*AE90+VLOOKUP(COUNTIF(AE$89:AE$99,AE90),$B$89:$C$99,2))/COUNTIF(AE$89:AE$99,AE90)) -> 1 | AI90: =AI11 -> 0 | AJ90: =IF(COUNTIF(AI$89:AI$99,AI90)=1,AI90,(COUNTIF(AI$89:AI$99,AI90)*AI90+VLOOKUP(COUNTIF(AI$89:AI$99,AI90),$B$89:$C$99,2))/COUNTIF(AI$89:AI$99,AI90)) -> 5
B91: 4 | C91: 6 | D91: =D16 -> 4 | E91: 4 | G91: =G16 -> 1 | H91: 1 | J91: =J16 -> 3 | K91: 3 | M91: =M16 -> 1 | N91: 1 | P91: =P16 -> 5 | Q91: 5 | S91: =S16 -> 3 | T91: 3 | V91: =V16 -> 5 | W91: 5 | Y91: =Y16 -> 4 | Z91: 4 | AB91: =AB16 -> 3 | AC91: 3 | AE91: =AE16 -> 5 | AF91: 5 | AI91: =AI16 -> 0 | AJ91: 5
B92: 5 | C92: 10 | D92: =D21 -> 1 | E92: 1 | G92: =G21 -> 3 | H92: 3 | J92: =J21 -> 2 | K92: 2 | M92: =M21 -> 3 | N92: 3 | P92: =P21 -> 2 | Q92: 2 | S92: =S21 -> 2 | T92: 2 | V92: =V21 -> 1 | W92: 1 | Y92: =Y21 -> 2 | Z92: 2 | AB92: =AB21 -> 2 | AC92: 2 | AE92: =AE21 -> 4 | AF92: 4 | AI92: =AI21 -> 0 | AJ92: 5
B93: 6 | C93: 15 | D93: =D26 -> 2 | E93: 2 | G93: =G26 -> 2 | H93: 2 | J93: =J26 -> 1 | K93: 1 | M93: =M26 -> 2 | N93: 2 | P93: =P26 -> 3 | Q93: 3 | S93: =S26 -> 1 | T93: 1 | V93: =V26 -> 3 | W93: 3 | Y93: =Y26 -> 1 | Z93: 1 | AB93: =AB26 -> 1 | AC93: 1 | AE93: =AE26 -> 3 | AF93: 3 | AI93: =AI26 -> 0 | AJ93: 5
B94: 7 | C94: 21 | D94: =D31 ->  | G94: =G31 ->  | J94: =J31 ->  | M94: =M31 ->  | P94: =P31 ->  | S94: =S31 ->  | V94: =V31 ->  | Y94: =Y31 ->  | AB94: =AB31 ->  | AE94: =AE31 ->  | AI94: =AI31 -> 0 | AJ94: 5
B95: 8 | C95: 28 | D95: =D36 ->  | G95: =G36 ->  | J95: =J36 ->  | M95: =M36 ->  | P95: =P36 ->  | S95: =S36 ->  | V95: =V36 ->  | Y95: =Y36 ->  | AB95: =AB36 ->  | AE95: =AE36 ->  | AI95: =AI36 -> 0 | AJ95: 5
B96: 9 | C96: 36 | D96: =D41 ->  | G96: =G41 ->  | J96: =J41 ->  | M96: =M41 ->  | P96: =P41 ->  | S96: =S41 ->  | V96: =V41 ->  | Y96: =Y41 ->  | AB96: =AB41 ->  | AE96: =AE41 ->  | AI96: =AI41 -> 0 | AJ96: 5
B97: 10 | C97: 45 | D97: =D46 ->  | G97: =G46 ->  | J97: =J46 ->  | M97: =M46 ->  | P97: =P46 ->  | S97: =S46 ->  | V97: =V46 ->  | Y97: =Y46 ->  | AB97: =AB46 ->  | AE97: =AE46 ->  | AI97: =AI46 -> 0 | AJ97: 5
B98: 11 | C98: 55 | D98: =D51 ->  | G98: =G51 ->  | J98: =J51 ->  | M98: =M51 ->  | P98: =P51 ->  | S98: =S51 ->  | V98: =V51 ->  | Y98: =Y51 ->  | AB98: =AB51 ->  | AE98: =AE51 ->  | AI98: =AI51 -> 0 | AJ98: 5
B99: 12 | C99: 66 | D99: =D56 ->  | G99: =G56 ->  | J99: =J56 ->  | M99: =M56 ->  | P99: =P56 ->  | S99: =S56 ->  | V99: =V56 ->  | Y99: =Y56 ->  | AB99: =AB56 ->  | AE99: =AE56 ->  | AI99: =AI56 -> 0 | AJ99: 5
C100: 78 | D100: =D51 ->  | G100: =G51 ->  | J100: =J51 ->  | M100: =M51 ->  | P100: =P51 ->  | S100: =S51 ->  | V100: =V51 ->  | Y100: =Y51 ->  | AB100: =AB51 ->  | AE100: =AE51 ->  | AI100: =AI51 -> 0 | AJ100: 5
B103: 1 | C103: pontszám | D103: =D6 -> 3 | E103: =IF(COUNTIF(D$103:D$114,D103)=1,D103,(COUNTIF(D$103:D$114,D103)*D103+VLOOKUP(COUNTIF(D$103:D$114,D103),$B$88:$C$99,2))/COUNTIF(D$103:D$114,D103)) -> 3 | G103: =G6 -> 5 | H103: =IF(COUNTIF(G$103:G$114,G103)=1,G103,(COUNTIF(G$103:G$114,G103)*G103+VLOOKUP(COUNTIF(G$103:G$114,G103),$B$88:$C$99,2))/COUNTIF(G$103:G$114,G103)) -> 5 | J103: =J6 -> 5 | K103: =IF(COUNTIF(J$103:J$114,J103)=1,J103,(COUNTIF(J$103:J$114,J103)*J103+VLOOKUP(COUNTIF(J$103:J$114,J103),$B$88:$C$99,2))/COUNTIF(J$103:J$114,J103)) -> 5 | M103: =M6 -> 4 | N103: =IF(COUNTIF(M$103:M$114,M103)=1,M103,(COUNTIF(M$103:M$114,M103)*M103+VLOOKUP(COUNTIF(M$103:M$114,M103),$B$88:$C$99,2))/COUNTIF(M$103:M$114,M103)) -> 4 | P103: =P6 -> 4 | Q103: =IF(COUNTIF(P$103:P$114,P103)=1,P103,(COUNTIF(P$103:P$114,P103)*P103+VLOOKUP(COUNTIF(P$103:P$114,P103),$B$88:$C$99,2))/COUNTIF(P$103:P$114,P103)) -> 4 | S103: =S6 -> 5 | T103: =IF(COUNTIF(S$103:S$114,S103)=1,S103,(COUNTIF(S$103:S$114,S103)*S103+VLOOKUP(COUNTIF(S$103:S$114,S103),$B$88:$C$99,2))/COUNTIF(S$103:S$114,S103)) -> 5 | V103: =V6 -> 4 | W103: =IF(COUNTIF(V$103:V$114,V103)=1,V103,(COUNTIF(V$103:V$114,V103)*V103+VLOOKUP(COUNTIF(V$103:V$114,V103),$B$88:$C$99,2))/COUNTIF(V$103:V$114,V103)) -> 4 | Y103: =Y6 -> 5 | Z103: =IF(COUNTIF(Y$103:Y$114,Y103)=1,Y103,(COUNTIF(Y$103:Y$114,Y103)*Y103+VLOOKUP(COUNTIF(Y$103:Y$114,Y103),$B$88:$C$99,2))/COUNTIF(Y$103:Y$114,Y103)) -> 5 | AB103: =AB6 -> 5 | AC103: =IF(COUNTIF(AB$103:AB$114,AB103)=1,AB103,(COUNTIF(AB$103:AB$114,AB103)*AB103+VLOOKUP(COUNTIF(AB$103:AB$114,AB103),$B$88:$C$99,2))/COUNTIF(AB$103:AB$114,AB103)) -> 5 | AE103: =AE6 -> 2 | AF103: =IF(COUNTIF(AE$103:AE$114,AE103)=1,AE103,(COUNTIF(AE$103:AE$114,AE103)*AE103+VLOOKUP(COUNTIF(AE$103:AE$114,AE103),$B$88:$C$99,2))/COUNTIF(AE$103:AE$114,AE103)) -> 2 | AI103: =AI6 -> 0 | AJ103: =IF(COUNTIF(AI$103:AI$114,AI103)=1,AI103,(COUNTIF(AI$103:AI$114,AI103)*AI103+VLOOKUP(COUNTIF(AI$103:AI$114,AI103),$B$88:$C$99,2))/COUNTIF(AI$103:AI$114,AI103)) -> 5.5
B104: 2 | D104: =D11 -> 5 | E104: =IF(COUNTIF(D$103:D$114,D104)=1,D104,(COUNTIF(D$103:D$114,D104)*D104+VLOOKUP(COUNTIF(D$103:D$114,D104),$B$88:$C$99,2))/COUNTIF(D$103:D$114,D104)) -> 5 | G104: =G11 -> 4 | H104: =IF(COUNTIF(G$103:G$114,G104)=1,G104,(COUNTIF(G$103:G$114,G104)*G104+VLOOKUP(COUNTIF(G$103:G$114,G104),$B$88:$C$99,2))/COUNTIF(G$103:G$114,G104)) -> 4 | J104: =J11 -> 4 | K104: =IF(COUNTIF(J$103:J$114,J104)=1,J104,(COUNTIF(J$103:J$114,J104)*J104+VLOOKUP(COUNTIF(J$103:J$114,J104),$B$88:$C$99,2))/COUNTIF(J$103:J$114,J104)) -> 4 | M104: =M11 -> 5 | N104: =IF(COUNTIF(M$103:M$114,M104)=1,M104,(COUNTIF(M$103:M$114,M104)*M104+VLOOKUP(COUNTIF(M$103:M$114,M104),$B$88:$C$99,2))/COUNTIF(M$103:M$114,M104)) -> 5 | P104: =P11 -> 1 | Q104: =IF(COUNTIF(P$103:P$114,P104)=1,P104,(COUNTIF(P$103:P$114,P104)*P104+VLOOKUP(COUNTIF(P$103:P$114,P104),$B$88:$C$99,2))/COUNTIF(P$103:P$114,P104)) -> 1 | S104: =S11 -> 4 | T104: =IF(COUNTIF(S$103:S$114,S104)=1,S104,(COUNTIF(S$103:S$114,S104)*S104+VLOOKUP(COUNTIF(S$103:S$114,S104),$B$88:$C$99,2))/COUNTIF(S$103:S$114,S104)) -> 4 | V104: =V11 -> 2 | W104: =IF(COUNTIF(V$103:V$114,V104)=1,V104,(COUNTIF(V$103:V$114,V104)*V104+VLOOKUP(COUNTIF(V$103:V$114,V104),$B$88:$C$99,2))/COUNTIF(V$103:V$114,V104)) -> 2 | Y104: =Y11 -> 3 | Z104: =IF(COUNTIF(Y$103:Y$114,Y104)=1,Y104,(COUNTIF(Y$103:Y$114,Y104)*Y104+VLOOKUP(COUNTIF(Y$103:Y$114,Y104),$B$88:$C$99,2))/COUNTIF(Y$103:Y$114,Y104)) -> 3 | AB104: =AB11 -> 4 | AC104: =IF(COUNTIF(AB$103:AB$114,AB104)=1,AB104,(COUNTIF(AB$103:AB$114,AB104)*AB104+VLOOKUP(COUNTIF(AB$103:AB$114,AB104),$B$88:$C$99,2))/COUNTIF(AB$103:AB$114,AB104)) -> 4 | AE104: =AE11 -> 1 | AF104: =IF(COUNTIF(AE$103:AE$114,AE104)=1,AE104,(COUNTIF(AE$103:AE$114,AE104)*AE104+VLOOKUP(COUNTIF(AE$103:AE$114,AE104),$B$88:$C$99,2))/COUNTIF(AE$103:AE$114,AE104)) -> 1 | AI104: =AI11 -> 0 | AJ104: =IF(COUNTIF(AI$103:AI$114,AI104)=1,AI104,(COUNTIF(AI$103:AI$114,AI104)*AI104+VLOOKUP(COUNTIF(AI$103:AI$114,AI104),$B$88:$C$99,2))/COUNTIF(AI$103:AI$114,AI104)) -> 5.5
B105: 3 | D105: =D16 -> 4 | E105: 4 | G105: =G16 -> 1 | H105: 1 | J105: =J16 -> 3 | K105: 3 | M105: =M16 -> 1 | N105: 1 | P105: =P16 -> 5 | Q105: 5 | S105: =S16 -> 3 | T105: 3 | V105: =V16 -> 5 | W105: 5 | Y105: =Y16 -> 4 | Z105: 4 | AB105: =AB16 -> 3 | AC105: 3 | AE105: =AE16 -> 5 | AF105: 5 | AI105: =AI16 -> 0 | AJ105: 5.5
B106: 4 | D106: =D21 -> 1 | E106: 1 | G106: =G21 -> 3 | H106: 3 | J106: =J21 -> 2 | K106: 2 | M106: =M21 -> 3 | N106: 3 | P106: =P21 -> 2 | Q106: 2 | S106: =S21 -> 2 | T106: 2 | V106: =V21 -> 1 | W106: 1 | Y106: =Y21 -> 2 | Z106: 2 | AB106: =AB21 -> 2 | AC106: 2 | AE106: =AE21 -> 4 | AF106: 4 | AI106: =AI21 -> 0 | AJ106: 5.5
B107: 5 | D107: =D26 -> 2 | E107: 2 | G107: =G26 -> 2 | H107: 2 | J107: =J26 -> 1 | K107: 1 | M107: =M26 -> 2 | N107: 2 | P107: =P26 -> 3 | Q107: 3 | S107: =S26 -> 1 | T107: 1 | V107: =V26 -> 3 | W107: 3 | Y107: =Y26 -> 1 | Z107: 1 | AB107: =AB26 -> 1 | AC107: 1 | AE107: =AE26 -> 3 | AF107: 3 | AI107: =AI26 -> 0 | AJ107: 5.5
B108: 6 | D108: =D31 ->  | G108: =G31 ->  | J108: =J31 ->  | M108: =M31 ->  | P108: =P31 ->  | S108: =S31 ->  | V108: =V31 ->  | Y108: =Y31 ->  | AB108: =AB31 ->  | AE108: =AE31 ->  | AI108: =AI31 -> 0 | AJ108: 5.5
B109: 7 | D109: =D36 ->  | G109: =G36 ->  | J109: =J36 ->  | M109: =M36 ->  | P109: =P36 ->  | S109: =S36 ->  | V109: =V36 ->  | Y109: =Y36 ->  | AB109: =AB36 ->  | AE109: =AE36 ->  | AI109: =AI36 -> 0 | AJ109: 5.5
B110: 8 | D110: =D41 ->  | G110: =G41 ->  | J110: =J41 ->  | M110: =M41 ->  | P110: =P41 ->  | S110: =S41 ->  | V110: =V41 ->  | Y110: =Y41 ->  | AB110: =AB41 ->  | AE110: =AE41 ->  | AI110: =AI41 -> 0 | AJ110: 5.5
B111: 9 | D111: =D46 ->  | G111: =G46 ->  | J111: =J46 ->  | M111: =M46 ->  | P111: =P46 ->  | S111: =S46 ->  | V111: =V46 ->  | Y111: =Y46 ->  | AB111: =AB46 ->  | AE111: =AE46 ->  | AI111: =AI46 -> 0 | AJ111: 5.5
B112: 10 | D112: =D51 ->  | G112: =G51 ->  | J112: =J51 ->  | M112: =M51 ->  | P112: =P51 ->  | S112: =S51 ->  | V112: =V51 ->  | Y112: =Y51 ->  | AB112: =AB51 ->  | AE112: =AE51 ->  | AI112: =AI51 -> 0 | AJ112: 5.5
B113: 11 | D113: =D56 ->  | G113: =G56 ->  | J113: =J56 ->  | M113: =M56 ->  | P113: =P56 ->  | S113: =S56 ->  | V113: =V56 ->  | Y113: =Y56 ->  | AB113: =AB56 ->  | AE113: =AE56 ->  | AI113: =AI56 -> 0 | AJ113: 5.5
B114: 12 | D114: =D61 ->  | G114: =G61 ->  | J114: =J61 ->  | M114: =M61 ->  | P114: =P61 ->  | S114: =S61 ->  | V114: =V61 ->  | Y114: =Y61 ->  | AB114: =AB61 ->  | AE114: =AE61 ->  | AI114: =AI61 -> 0 | AJ114: 5.5
B120: 1 | C120: helyezés | D120: =IF(D5=0,IF(E$1="helyezés",0,100000001),TRUNC(1/D5*10000000)) -> 6619675145 | E120: =RANK(D120,D$120:D$131,D$87-1) -> 3 | G120: =IF(G5=0,IF(H$1="helyezés",0,100000001),TRUNC(1/G5*10000000)) -> 11817808781 | H120: =RANK(G120,G$120:G$131,G$87-1) -> 5 | J120: =IF(J5=0,IF(K$1="helyezés",0,100000001),TRUNC(1/J5*10000000)) -> 5630498533 | K120: =RANK(J120,J$120:J$131,J$87-1) -> 5 | M120: =IF(M5=0,IF(N$1="helyezés",0,100000001),TRUNC(1/M5*10000000)) -> 3925845147 | N120: =RANK(M120,M$120:M$131,M$87-1) -> 4 | P120: =IF(P5=0,IF(Q$1="helyezés",0,100000001),TRUNC(1/P5*10000000)) -> 38230088495 | Q120: =RANK(P120,P$120:P$131,P$87-1) -> 4 | S120: =IF(S5=0,IF(T$1="helyezés",0,100000001),TRUNC(1/S5*10000000)) -> 8244274809 | T120: =RANK(S120,S$120:S$131,S$87-1) -> 5 | V120: =IF(V5=0,IF(W$1="helyezés",0,100000001),TRUNC(1/V5*10000000)) -> 5665202281 | W120: =RANK(V120,V$120:V$131,V$87-1) -> 4 | Y120: =IF(Y5=0,IF(Z$1="helyezés",0,100000001),TRUNC(1/Y5*10000000)) -> 7921518291 | Z120: =RANK(Y120,Y$120:Y$131,Y$87-1) -> 5 | AB120: =IF(AB5=0,IF(AC$1="helyezés",0,100000001),TRUNC(1/AB5*10000000)) -> 6344543985 | AC120: =RANK(AB120,AB$120:AB$131,AB$87-1) -> 5 | AE120: =IF(AE5=0,IF(AF$1="helyezés",0,100000001),TRUNC(1/AE5*10000000)) -> 5000000 | AF120: =RANK(AE120,AE$120:AE$131,AE$87-1) -> 2 | AI120: =IF(AI5=0,IF(AJ$1="helyezés",0,100000001),TRUNC(1/AI5*10000000)) -> 100000001 | AJ120: =RANK(AI120,AI$120:AI$131,AI$87-1) -> 1
B121: 2 | D121: =IF(D10=0,IF(E$1="helyezés",0,100000001),TRUNC(1/D10*10000000)) -> 6593909791 | E121: =RANK(D121,D$120:D$131,D$87-1) -> 5 | G121: =IF(G10=0,IF(H$1="helyezés",0,100000001),TRUNC(1/G10*10000000)) -> 11927112092 | H121: =RANK(G121,G$120:G$131,G$87-1) -> 4 | J121: =IF(J10=0,IF(K$1="helyezés",0,100000001),TRUNC(1/J10*10000000)) -> 5789720565 | K121: =RANK(J121,J$120:J$131,J$87-1) -> 4 | M121: =IF(M10=0,IF(N$1="helyezés",0,100000001),TRUNC(1/M10*10000000)) -> 3648186462 | N121: =RANK(M121,M$120:M$131,M$87-1) -> 5 | P121: =IF(P10=0,IF(Q$1="helyezés",0,100000001),TRUNC(1/P10*10000000)) -> 42002916869 | Q121: =RANK(P121,P$120:P$131,P$87-1) -> 1 | S121: =IF(S10=0,IF(T$1="helyezés",0,100000001),TRUNC(1/S10*10000000)) -> 8736980483 | T121: =RANK(S121,S$120:S$131,S$87-1) -> 4 | V121: =IF(V10=0,IF(W$1="helyezés",0,100000001),TRUNC(1/V10*10000000)) -> 5712774398 | W121: =RANK(V121,V$120:V$131,V$87-1) -> 2 | Y121: =IF(Y10=0,IF(Z$1="helyezés",0,100000001),TRUNC(1/Y10*10000000)) -> 8541769649 | Z121: =RANK(Y121,Y$120:Y$131,Y$87-1) -> 3 | AB121: =IF(AB10=0,IF(AC$1="helyezés",0,100000001),TRUNC(1/AB10*10000000)) -> 6402845709 | AC121: =RANK(AB121,AB$120:AB$131,AB$87-1) -> 4 | AE121: =IF(AE10=0,IF(AF$1="helyezés",0,100000001),TRUNC(1/AE10*10000000)) -> 10000000 | AF121: =RANK(AE121,AE$120:AE$131,AE$87-1) -> 1 | AI121: =IF(AI10=0,IF(AJ$1="helyezés",0,100000001),TRUNC(1/AI10*10000000)) -> 100000001 | AJ121: =RANK(AI121,AI$120:AI$131,AI$87-1) -> 1
B122: 3 | D122: =IF(D15=0,IF(E$1="helyezés",0,100000001),TRUNC(1/D15*10000000)) -> 6600458365 | E122: 4 | G122: =IF(G15=0,IF(H$1="helyezés",0,100000001),TRUNC(1/G15*10000000)) -> 13872832369 | H122: 1 | J122: =IF(J15=0,IF(K$1="helyezés",0,100000001),TRUNC(1/J15*10000000)) -> 5968087310 | K122: 3 | M122: =IF(M15=0,IF(N$1="helyezés",0,100000001),TRUNC(1/M15*10000000)) -> 4159445407 | N122: 1 | P122: =IF(P15=0,IF(Q$1="helyezés",0,100000001),TRUNC(1/P15*10000000)) -> 38196286472 | Q122: 5 | S122: =IF(S15=0,IF(T$1="helyezés",0,100000001),TRUNC(1/S15*10000000)) -> 9036711641 | T122: 3 | V122: =IF(V15=0,IF(W$1="helyezés",0,100000001),TRUNC(1/V15*10000000)) -> 5334321170 | W122: 5 | Y122: =IF(Y15=0,IF(Z$1="helyezés",0,100000001),TRUNC(1/Y15*10000000)) -> 8049939439 | Z122: 4 | AB122: =IF(AB15=0,IF(AC$1="helyezés",0,100000001),TRUNC(1/AB15*10000000)) -> 6433358153 | AC122: 3 | AE122: =IF(AE15=0,IF(AF$1="helyezés",0,100000001),TRUNC(1/AE15*10000000)) -> 2000000 | AF122: 5 | AI122: =IF(AI15=0,IF(AJ$1="helyezés",0,100000001),TRUNC(1/AI15*10000000)) -> 100000001 | AJ122: 1
B123: 4 | D123: =IF(D20=0,IF(E$1="helyezés",0,100000001),TRUNC(1/D20*10000000)) -> 6791385002 | E123: 1 | G123: =IF(G20=0,IF(H$1="helyezés",0,100000001),TRUNC(1/G20*10000000)) -> 12909009412 | H123: 3 | J123: =IF(J20=0,IF(K$1="helyezés",0,100000001),TRUNC(1/J20*10000000)) -> 6189998567 | K123: 2 | M123: =IF(M20=0,IF(N$1="helyezés",0,100000001),TRUNC(1/M20*10000000)) -> 3973875448 | N123: 3 | P123: =IF(P20=0,IF(Q$1="helyezés",0,100000001),TRUNC(1/P20*10000000)) -> 40468384074 | Q123: 2 | S123: =IF(S20=0,IF(T$1="helyezés",0,100000001),TRUNC(1/S20*10000000)) -> 9283335124 | T123: 2 | V123: =IF(V20=0,IF(W$1="helyezés",0,100000001),TRUNC(1/V20*10000000)) -> 5785843434 | W123: 1 | Y123: =IF(Y20=0,IF(Z$1="helyezés",0,100000001),TRUNC(1/Y20*10000000)) -> 8764455264 | Z123: 2 | AB123: =IF(AB20=0,IF(AC$1="helyezés",0,100000001),TRUNC(1/AB20*10000000)) -> 6511908350 | AC123: 2 | AE123: =IF(AE20=0,IF(AF$1="helyezés",0,100000001),TRUNC(1/AE20*10000000)) -> 2500000 | AF123: 4 | AI123: =IF(AI20=0,IF(AJ$1="helyezés",0,100000001),TRUNC(1/AI20*10000000)) -> 100000001 | AJ123: 1
B124: 5 | D124: =IF(D25=0,IF(E$1="helyezés",0,100000001),TRUNC(1/D25*10000000)) -> 6743151486 | E124: 2 | G124: =IF(G25=0,IF(H$1="helyezés",0,100000001),TRUNC(1/G25*10000000)) -> 13608442274 | H124: 2 | J124: =IF(J25=0,IF(K$1="helyezés",0,100000001),TRUNC(1/J25*10000000)) -> 6243676831 | K124: 1 | M124: =IF(M25=0,IF(N$1="helyezés",0,100000001),TRUNC(1/M25*10000000)) -> 4121744108 | N124: 2 | P124: =IF(P25=0,IF(Q$1="helyezés",0,100000001),TRUNC(1/P25*10000000)) -> 39344262295 | Q124: 3 | S124: =IF(S25=0,IF(T$1="helyezés",0,100000001),TRUNC(1/S25*10000000)) -> 9406641262 | T124: 1 | V124: =IF(V25=0,IF(W$1="helyezés",0,100000001),TRUNC(1/V25*10000000)) -> 5670035437 | W124: 3 | Y124: =IF(Y25=0,IF(Z$1="helyezés",0,100000001),TRUNC(1/Y25*10000000)) -> 9049015500 | Z124: 1 | AB124: =IF(AB25=0,IF(AC$1="helyezés",0,100000001),TRUNC(1/AB25*10000000)) -> 6553895168 | AC124: 1 | AE124: =IF(AE25=0,IF(AF$1="helyezés",0,100000001),TRUNC(1/AE25*10000000)) -> 3333333 | AF124: 3 | AI124: =IF(AI25=0,IF(AJ$1="helyezés",0,100000001),TRUNC(1/AI25*10000000)) -> 100000001 | AJ124: 1
B125: 6 | D125: =IF(D30=0,IF(E$1="helyezés",0,100000001),TRUNC(1/D30*10000000)) -> 100000001 | E125: 6 | G125: =IF(G30=0,IF(H$1="helyezés",0,100000001),TRUNC(1/G30*10000000)) -> 100000001 | H125: 6 | J125: =IF(J30=0,IF(K$1="helyezés",0,100000001),TRUNC(1/J30*10000000)) -> 100000001 | K125: 6 | M125: =IF(M30=0,IF(N$1="helyezés",0,100000001),TRUNC(1/M30*10000000)) -> 100000001 | N125: 6 | P125: =IF(P30=0,IF(Q$1="helyezés",0,100000001),TRUNC(1/P30*10000000)) -> 100000001 | Q125: 6 | S125: =IF(S30=0,IF(T$1="helyezés",0,100000001),TRUNC(1/S30*10000000)) -> 100000001 | T125: 6 | V125: =IF(V30=0,IF(W$1="helyezés",0,100000001),TRUNC(1/V30*10000000)) -> 100000001 | W125: 6 | Y125: =IF(Y30=0,IF(Z$1="helyezés",0,100000001),TRUNC(1/Y30*10000000)) -> 100000001 | Z125: 6 | AB125: =IF(AB30=0,IF(AC$1="helyezés",0,100000001),TRUNC(1/AB30*10000000)) -> 100000001 | AC125: 6 | AE125: =IF(AE30=0,IF(AF$1="helyezés",0,100000001),TRUNC(1/AE30*10000000)) -> 0 | AF125: 6 | AI125: =IF(AI30=0,IF(AJ$1="helyezés",0,100000001),TRUNC(1/AI30*10000000)) -> 100000001 | AJ125: 1
B126: 7 | D126: =IF(D35=0,IF(E$1="helyezés",0,100000001),TRUNC(1/D35*10000000)) -> 100000001 | E126: 6 | G126: =IF(G35=0,IF(H$1="helyezés",0,100000001),TRUNC(1/G35*10000000)) -> 100000001 | H126: 6 | J126: =IF(J35=0,IF(K$1="helyezés",0,100000001),TRUNC(1/J35*10000000)) -> 100000001 | K126: 6 | M126: =IF(M35=0,IF(N$1="helyezés",0,100000001),TRUNC(1/M35*10000000)) -> 100000001 | N126: 6 | P126: =IF(P35=0,IF(Q$1="helyezés",0,100000001),TRUNC(1/P35*10000000)) -> 100000001 | Q126: 6 | S126: =IF(S35=0,IF(T$1="helyezés",0,100000001),TRUNC(1/S35*10000000)) -> 100000001 | T126: 6 | V126: =IF(V35=0,IF(W$1="helyezés",0,100000001),TRUNC(1/V35*10000000)) -> 100000001 | W126: 6 | Y126: =IF(Y35=0,IF(Z$1="helyezés",0,100000001),TRUNC(1/Y35*10000000)) -> 100000001 | Z126: 6 | AB126: =IF(AB35=0,IF(AC$1="helyezés",0,100000001),TRUNC(1/AB35*10000000)) -> 100000001 | AC126: 6 | AE126: =IF(AE35=0,IF(AF$1="helyezés",0,100000001),TRUNC(1/AE35*10000000)) -> 0 | AF126: 6 | AI126: =IF(AI35=0,IF(AJ$1="helyezés",0,100000001),TRUNC(1/AI35*10000000)) -> 100000001 | AJ126: 1
B127: 8 | D127: =IF(D40=0,IF(E$1="helyezés",0,100000001),TRUNC(1/D40*10000000)) -> 100000001 | E127: 6 | G127: =IF(G40=0,IF(H$1="helyezés",0,100000001),TRUNC(1/G40*10000000)) -> 100000001 | H127: 6 | J127: =IF(J40=0,IF(K$1="helyezés",0,100000001),TRUNC(1/J40*10000000)) -> 100000001 | K127: 6 | M127: =IF(M40=0,IF(N$1="helyezés",0,100000001),TRUNC(1/M40*10000000)) -> 100000001 | N127: 6 | P127: =IF(P40=0,IF(Q$1="helyezés",0,100000001),TRUNC(1/P40*10000000)) -> 100000001 | Q127: 6 | S127: =IF(S40=0,IF(T$1="helyezés",0,100000001),TRUNC(1/S40*10000000)) -> 100000001 | T127: 6 | V127: =IF(V40=0,IF(W$1="helyezés",0,100000001),TRUNC(1/V40*10000000)) -> 100000001 | W127: 6 | Y127: =IF(Y40=0,IF(Z$1="helyezés",0,100000001),TRUNC(1/Y40*10000000)) -> 100000001 | Z127: 6 | AB127: =IF(AB40=0,IF(AC$1="helyezés",0,100000001),TRUNC(1/AB40*10000000)) -> 100000001 | AC127: 6 | AE127: =IF(AE40=0,IF(AF$1="helyezés",0,100000001),TRUNC(1/AE40*10000000)) -> 0 | AF127: 6 | AI127: =IF(AI40=0,IF(AJ$1="helyezés",0,100000001),TRUNC(1/AI40*10000000)) -> 100000001 | AJ127: 1
B128: 9 | D128: =IF(D45=0,IF(E$1="helyezés",0,100000001),TRUNC(1/D45*10000000)) -> 100000001 | E128: 6 | G128: =IF(G45=0,IF(H$1="helyezés",0,100000001),TRUNC(1/G45*10000000)) -> 100000001 | H128: 6 | J128: =IF(J45=0,IF(K$1="helyezés",0,100000001),TRUNC(1/J45*10000000)) -> 100000001 | K128: 6 | M128: =IF(M45=0,IF(N$1="helyezés",0,100000001),TRUNC(1/M45*10000000)) -> 100000001 | N128: 6 | P128: =IF(P45=0,IF(Q$1="helyezés",0,100000001),TRUNC(1/P45*10000000)) -> 100000001 | Q128: 6 | S128: =IF(S45=0,IF(T$1="helyezés",0,100000001),TRUNC(1/S45*10000000)) -> 100000001 | T128: 6 | V128: =IF(V45=0,IF(W$1="helyezés",0,100000001),TRUNC(1/V45*10000000)) -> 100000001 | W128: 6 | Y128: =IF(Y45=0,IF(Z$1="helyezés",0,100000001),TRUNC(1/Y45*10000000)) -> 100000001 | Z128: 6 | AB128: =IF(AB45=0,IF(AC$1="helyezés",0,100000001),TRUNC(1/AB45*10000000)) -> 100000001 | AC128: 6 | AE128: =IF(AE45=0,IF(AF$1="helyezés",0,100000001),TRUNC(1/AE45*10000000)) -> 0 | AF128: 6 | AI128: =IF(AI45=0,IF(AJ$1="helyezés",0,100000001),TRUNC(1/AI45*10000000)) -> 100000001 | AJ128: 1
B129: 10 | D129: =IF(D50=0,IF(E$1="helyezés",0,100000001),TRUNC(1/D50*10000000)) -> 100000001 | E129: 6 | G129: =IF(G50=0,IF(H$1="helyezés",0,100000001),TRUNC(1/G50*10000000)) -> 100000001 | H129: 6 | J129: =IF(J50=0,IF(K$1="helyezés",0,100000001),TRUNC(1/J50*10000000)) -> 100000001 | K129: 6 | M129: =IF(M50=0,IF(N$1="helyezés",0,100000001),TRUNC(1/M50*10000000)) -> 100000001 | N129: 6 | P129: =IF(P50=0,IF(Q$1="helyezés",0,100000001),TRUNC(1/P50*10000000)) -> 100000001 | Q129: 6 | S129: =IF(S50=0,IF(T$1="helyezés",0,100000001),TRUNC(1/S50*10000000)) -> 100000001 | T129: 6 | V129: =IF(V50=0,IF(W$1="helyezés",0,100000001),TRUNC(1/V50*10000000)) -> 100000001 | W129: 6 | Y129: =IF(Y50=0,IF(Z$1="helyezés",0,100000001),TRUNC(1/Y50*10000000)) -> 100000001 | Z129: 6 | AB129: =IF(AB50=0,IF(AC$1="helyezés",0,100000001),TRUNC(1/AB50*10000000)) -> 100000001 | AC129: 6 | AE129: =IF(AE50=0,IF(AF$1="helyezés",0,100000001),TRUNC(1/AE50*10000000)) -> 0 | AF129: 6 | AI129: =IF(AI50=0,IF(AJ$1="helyezés",0,100000001),TRUNC(1/AI50*10000000)) -> 100000001 | AJ129: 1
B130: 11 | D130: =IF(D55=0,IF(E$1="helyezés",0,100000001),TRUNC(1/D55*10000000)) -> 100000001 | E130: 6 | G130: =IF(G55=0,IF(H$1="helyezés",0,100000001),TRUNC(1/G55*10000000)) -> 100000001 | H130: 6 | J130: =IF(J55=0,IF(K$1="helyezés",0,100000001),TRUNC(1/J55*10000000)) -> 100000001 | K130: 6 | M130: =IF(M55=0,IF(N$1="helyezés",0,100000001),TRUNC(1/M55*10000000)) -> 100000001 | N130: 6 | P130: =IF(P55=0,IF(Q$1="helyezés",0,100000001),TRUNC(1/P55*10000000)) -> 100000001 | Q130: 6 | S130: =IF(S55=0,IF(T$1="helyezés",0,100000001),TRUNC(1/S55*10000000)) -> 100000001 | T130: 6 | V130: =IF(V55=0,IF(W$1="helyezés",0,100000001),TRUNC(1/V55*10000000)) -> 100000001 | W130: 6 | Y130: =IF(Y55=0,IF(Z$1="helyezés",0,100000001),TRUNC(1/Y55*10000000)) -> 100000001 | Z130: 6 | AB130: =IF(AB55=0,IF(AC$1="helyezés",0,100000001),TRUNC(1/AB55*10000000)) -> 100000001 | AC130: 6 | AE130: =IF(AE55=0,IF(AF$1="helyezés",0,100000001),TRUNC(1/AE55*10000000)) -> 0 | AF130: 6 | AI130: =IF(AI55=0,IF(AJ$1="helyezés",0,100000001),TRUNC(1/AI55*10000000)) -> 100000001 | AJ130: 1
B131: 12 | D131: =IF(D60=0,IF(E$1="helyezés",0,100000001),TRUNC(1/D60*10000000)) -> 100000001 | E131: 6 | G131: =IF(G60=0,IF(H$1="helyezés",0,100000001),TRUNC(1/G60*10000000)) -> 100000001 | H131: 6 | J131: =IF(J60=0,IF(K$1="helyezés",0,100000001),TRUNC(1/J60*10000000)) -> 100000001 | K131: 6 | M131: =IF(M60=0,IF(N$1="helyezés",0,100000001),TRUNC(1/M60*10000000)) -> 100000001 | N131: 6 | P131: =IF(P60=0,IF(Q$1="helyezés",0,100000001),TRUNC(1/P60*10000000)) -> 100000001 | Q131: 6 | S131: =IF(S60=0,IF(T$1="helyezés",0,100000001),TRUNC(1/S60*10000000)) -> 100000001 | T131: 6 | V131: =IF(V60=0,IF(W$1="helyezés",0,100000001),TRUNC(1/V60*10000000)) -> 100000001 | W131: 6 | Y131: =IF(Y60=0,IF(Z$1="helyezés",0,100000001),TRUNC(1/Y60*10000000)) -> 100000001 | Z131: 6 | AB131: =IF(AB60=0,IF(AC$1="helyezés",0,100000001),TRUNC(1/AB60*10000000)) -> 100000001 | AC131: 6 | AE131: =IF(AE60=0,IF($AF$1="helyezés",0,100000001),TRUNC(1/AE60*10000000)) -> 0 | AF131: 6 | AI131: =IF(AI60=0,IF($AF$1="helyezés",0,100000001),TRUNC(1/AI60*10000000)) -> 0 | AJ131: 12

Sheet Versenyszámok
A1: Versenyszámok: | B1: 1 | C1: =CONCATENATE(VLOOKUP(D1,$K$1:$N$29,3,0),"/",VLOOKUP(D1,$K$1:$N$29,4,0),".") -> 1/2. | D1: Futás váltóbottal | E1: =VLOOKUP(D1,$K$1:$L$29,2,0) -> idő | J1: 1 | K1: Krumpliültetés | L1: idő | M1: 1 | N1: 1
B2: 2 | C2: =CONCATENATE(VLOOKUP(D2,$K$1:$N$29,3,0),"/",VLOOKUP(D2,$K$1:$N$29,4,0),".") -> 2/1. | D2: Négykézlábjárás | E2: idő | K2: Futás váltóbottal | L2: idő | M2: 1 | N2: 2
B3: 3 | C3: 3/2. | D3: Alagúton át | E3: idő | K3: Társhordás karikával | L3: idő | M3: 1 | N3: 3
B4: 4 | C4: 4/3. | D4: Labdás ügyességi váltó | E4: idő | J4: 2 | K4: Négykézlábjárás | L4: idő | M4: 2 | N4: 1
B5: 5 | C5: 5/3. | D5: Hídakadály | E5: idő | K5: Pókjárás - Rákjárás | L5: idő | M5: 2 | N5: 2
B6: 6 | C6: 6/3. | D6: Bújj és karikában fuss | E6: idő | K6: Talicskaváltó | L6: idő | M6: 2 | N6: 3
B7: 7 | C7: 7/1. | D7: Karikarakó | E7: idő | J7: 3 | K7: Akadálypálya | L7: idő | M7: 3 | N7: 1
B8: 8 | C8: 8/2. | D8: Szlalom kézilabda | E8: idő | K8: Alagúton át | L8: idő | M8: 3 | N8: 2
B9: 9 | C9: 9/1. | D9: Karikán az akadályra | E9: idő | K9: Gátakadály | L9: idő | M9: 3 | N9: 3
B10: 10 | C10: 10/2. | D10: Bombázó | E10: =VLOOKUP(D10,$K$1:$L$29,2,0) -> helyezés | J10: 4 | K10: Utazó labda | L10: idő | M10: 4 | N10: 1
B11: Holtverseny | C11: =IF(D11="","",CONCATENATE(VLOOKUP(D11,$K$1:$N$29,3,0),"/",VLOOKUP(D10,$K$1:$N$29,4,0),".")) -> 3/2. | D11: Akadálypálya | E11: =VLOOKUP(D11,$K$1:$L$29,2,0) -> idő | K11: Floorball-váltó | L11: idő | M11: 4 | N11: 2
K12: Labdás ügyességi váltó | L12: idő | M12: 4 | N12: 3
A13: Helyszín: | J13: 5 | K13: Kötélhajtás | L13: pont | M13: 5 | N13: 1
A14: Dátum: | B14: 2016-02-22 | K14: Várfoglaló | L14: idő | M14: 5 | N14: 2
K15: Hídakadály | L15: idő | M15: 5 | N15: 3
J16: 6 | K16: Labdahordás | L16: idő | M16: 6 | N16: 1
K17: Páros adogatás | L17: idő | M17: 6 | N17: 2
K18: Bújj és karikában fuss | L18: idő | M18: 6 | N18: 3
J19: 7 | K19: Karikarakó | L19: idő | M19: 7 | N19: 1
K20: Kalapos váltó | L20: idő | M20: 7 | N20: 2
K21: Rakd a botot - Szedd a botot | L21: idő | M21: 7 | N21: 3
J22: 8 | K22: Szlalomozz a labdával | L22: idő | M22: 8 | N22: 1
K23: Szlalom kézilabda | L23: idő | M23: 8 | N23: 2
K24: Ügyeskedj a labdával | L24: idő | M24: 8 | N24: 3
J25: 9 | K25: Karikán az akadályra | L25: idő | M25: 9 | N25: 1
K26: Akadályon át | L26: idő | M26: 9 | N26: 2
K27: Alagútakadály | L27: idő | M27: 9 | N27: 3
J28: 10 | K28: Kötélhúzás | L28: helyezés | M28: 10 | N28: 1
K29: Bombázó | L29: helyezés | M29: 10 | N29: 2
A40: =TODAY() -> 2016-02-22

Sheet Nyomtatás
A1: Csapatok | B1: Versenyszám: | C1: =CONCATENATE(VLOOKUP(G1,Versenyszámok!B1:D10,2)," ",VLOOKUP(G1,Versenyszámok!B1:D10,3)) -> 10/2. Bombázó | E1: H. | F1: Versenyszám: | G1: 10 | P1: 1
A2: =IF(ISBLANK(Jegyzőkönyv!B3),"",Jegyzőkönyv!B3) -> Pécs | B2: Idő (p:mp:tmp): | C2: =INDEX($B$101:$K$112,O2,$G$1) -> 2 | E2: =Jegyzőkönyv!AH3 -> 5 | O2: 1 | P2: 2
B3: Hiba (p:mp:tmp): | C3: =INDEX($B$122:$K$133,O2,$G$1) -> 00:00:00 | P3: 3
B4: Össz.idő | C4: =SUM(C2:D3) -> 2 | P4: 4
B5: Helyezés | C5: =IF(ISBLANK(C2),"",INDEX($B$68:$K$79,O2,$G$1)) -> 2 | P5: 5
B6: Pont/Összp. | C6: =INDEX($B$140:$K$151,O2,$G$1) -> 4 | D6: =INDEX($B$84:$K$95,O2,$G$1) -> 18 | P6: 6
A7: =IF(ISBLANK(Jegyzőkönyv!B8),"",Jegyzőkönyv!B8) -> Békés | B7: Idő (p:mp:tmp): | C7: =INDEX($B$101:$K$112,O7,$G$1) -> 1 | E7: =Jegyzőkönyv!AH8 -> 3 | O7: 2 | P7: 7
B8: Hiba (p:mp:tmp): | C8: =INDEX($B$122:$K$133,O7,$G$1) -> 00:00:00 | P8: 8
B9: Össz.idő | C9: =SUM(C7:D8) -> 1 | P9: 9
B10: Helyezés | C10: =IF(ISBLANK(C7),"",INDEX($B$68:$K$79,O7,$G$1)) -> 1 | P10: 10
B11: Pont/Összp. | C11: =INDEX($B$140:$K$151,O7,$G$1) -> 5 | D11: =INDEX($B$84:$K$95,O7,$G$1) -> 27
A12: =IF(ISBLANK(Jegyzőkönyv!B13),"",Jegyzőkönyv!B13) -> Hajdúböszörmény | B12: Idő (p:mp:tmp): | C12: =INDEX($B$101:$K$112,O12,$G$1) -> 5 | E12: =Jegyzőkönyv!AH13 -> 4 | O12: 3
B13: Hiba (p:mp:tmp): | C13: =INDEX($B$122:$K$133,O12,$G$1) -> 00:00:00
B14: Össz.idő | C14: =SUM(C12:D13) -> 5
B15: Helyezés | C15: =IF(ISBLANK(C12),"",INDEX($B$68:$K$79,O12,$G$1)) -> 5
B16: Pont/Összp. | C16: =INDEX($B$140:$K$151,O12,$G$1) -> 1 | D16: =INDEX($B$84:$K$95,O12,$G$1) -> 26
A17: =IF(ISBLANK(Jegyzőkönyv!B18),"",Jegyzőkönyv!B18) -> Törökbálint | B17: Idő (p:mp:tmp): | C17: =INDEX($B$101:$K$112,O17,$G$1) -> 4 | E17: =Jegyzőkönyv!AH18 -> 2 | O17: 4
B18: Hiba (p:mp:tmp): | C18: =INDEX($B$122:$K$133,O17,$G$1) -> 00:00:00
B19: Össz.idő | C19: =SUM(C17:D18) -> 4
B20: Helyezés | C20: =IF(ISBLANK(C17),"",INDEX($B$68:$K$79,O17,$G$1)) -> 4
B21: Pont/Összp. | C21: =INDEX($B$140:$K$151,O17,$G$1) -> 2 | D21: =INDEX($B$84:$K$95,O17,$G$1) -> 38
A22: =IF(ISBLANK(Jegyzőkönyv!B23),"",Jegyzőkönyv!B23) -> Szombathely | B22: Idő (p:mp:tmp): | C22: =INDEX($B$101:$K$112,O22,$G$1) -> 3 | E22: =Jegyzőkönyv!AH23 -> 1 | O22: 5
B23: Hiba (p:mp:tmp): | C23: =INDEX($B$122:$K$133,O22,$G$1) -> 00:00:00
B24: Össz.idő | C24: =SUM(C22:D23) -> 3
B25: Helyezés | C25: =IF(ISBLANK(C22),"",INDEX($B$68:$K$79,O22,$G$1)) -> 3
B26: Pont/Összp. | C26: =INDEX($B$140:$K$151,O22,$G$1) -> 3 | D26: =INDEX($B$84:$K$95,O22,$G$1) -> 41
A27: =IF(ISBLANK(Jegyzőkönyv!B28),"",Jegyzőkönyv!B28) ->  | B27: Idő (p:mp:tmp): | C27: =INDEX($B$101:$K$112,O27,$G$1) -> 00:00:00 | E27: =Jegyzőkönyv!AH28 ->  | O27: 6
B28: Hiba (p:mp:tmp): | C28: =INDEX($B$122:$K$133,O27,$G$1) -> 00:00:00
B29: Össz.idő | C29: =SUM(C27:D28) -> 00:00:00
B30: Helyezés | C30: =IF(ISBLANK(C27),"",INDEX($B$68:$K$79,O27,$G$1)) -> 
B31: Pont/Összp. | C31: =INDEX($B$140:$K$151,O27,$G$1) ->  | D31: =INDEX($B$84:$K$95,O27,$G$1) -> 
A32: =IF(ISBLANK(Jegyzőkönyv!B33),"",Jegyzőkönyv!B33) ->  | B32: Idő (p:mp:tmp): | C32: =INDEX($B$101:$K$112,O32,$G$1) -> 00:00:00 | E32: =Jegyzőkönyv!AH33 ->  | O32: 7
B33: Hiba (p:mp:tmp): | C33: =INDEX($B$122:$K$133,O32,$G$1) -> 00:00:00
B34: Össz.idő | C34: =SUM(C32:D33) -> 00:00:00
B35: Helyezés | C35: =IF(ISBLANK(C32),"",INDEX($B$68:$K$79,O32,$G$1)) -> 
B36: Pont/Összp. | C36: =INDEX($B$140:$K$151,O32,$G$1) ->  | D36: =INDEX($B$84:$K$95,O32,$G$1) -> 
A37: =IF(ISBLANK(Jegyzőkönyv!B38),"",Jegyzőkönyv!B38) ->  | B37: Idő (p:mp:tmp): | C37: =INDEX($B$101:$K$112,O37,$G$1) -> 00:00:00 | E37: =Jegyzőkönyv!AH38 ->  | O37: 8
B38: Hiba (p:mp:tmp): | C38: =INDEX($B$122:$K$133,O37,$G$1) -> 00:00:00
B39: Össz.idő | C39: =SUM(C37:D38) -> 00:00:00
B40: Helyezés | C40: =IF(ISBLANK(C37),"",INDEX($B$68:$K$79,O37,$G$1)) -> 
B41: Pont/Összp. | C41: =INDEX($B$140:$K$151,O37,$G$1) ->  | D41: =INDEX($B$84:$K$95,O37,$G$1) -> 
A42: =IF(ISBLANK(Jegyzőkönyv!B43),"",Jegyzőkönyv!B43) ->  | B42: Idő (p:mp:tmp): | C42: =INDEX($B$101:$K$112,O42,$G$1) -> 00:00:00 | E42: =Jegyzőkönyv!AH43 ->  | O42: 9
B43: Hiba (p:mp:tmp): | C43: =INDEX($B$122:$K$133,O42,$G$1) -> 00:00:00
B44: Össz.idő | C44: =SUM(C42:D43) -> 00:00:00
B45: Helyezés | C45: =IF(ISBLANK(C42),"",INDEX($B$68:$K$79,O42,$G$1)) -> 
B46: Pont/Összp. | C46: =INDEX($B$140:$K$151,O42,$G$1) ->  | D46: =INDEX($B$84:$K$95,O42,$G$1) -> 
A47: =IF(ISBLANK(Jegyzőkönyv!B48),"",Jegyzőkönyv!B48) ->  | B47: Idő (p:mp:tmp): | C47: =INDEX($B$101:$K$112,O47,$G$1) -> 00:00:00 | E47: =Jegyzőkönyv!AH48 ->  | O47: 10
B48: Hiba (p:mp:tmp): | C48: =INDEX($B$122:$K$133,O47,$G$1) -> 00:00:00
B49: Össz.idő | C49: =SUM(C47:D48) -> 00:00:00
B50: Helyezés | C50: =IF(ISBLANK(C47),"",INDEX($B$68:$K$79,O47,$G$1)) -> 
B51: Pont/Összp. | C51: =INDEX($B$140:$K$151,O47,$G$1) ->  | D51: =INDEX($B$84:$K$95,O47,$G$1) -> 
A52: =IF(ISBLANK(Jegyzőkönyv!B53),"",Jegyzőkönyv!B53) ->  | B52: Idő (p:mp:tmp): | C52: =INDEX($B$101:$K$112,O52,$G$1) -> 00:00:00 | E52: =Jegyzőkönyv!AH53 ->  | O52: 11
B53: Hiba (p:mp:tmp): | C53: =INDEX($B$122:$K$133,O52,$G$1) -> 00:00:00
B54: Össz.idő | C54: =SUM(C52:D53) -> 00:00:00
B55: Helyezés | C55: =IF(ISBLANK(C52),"",INDEX($B$68:$K$79,O52,$G$1)) -> 
B56: Pont/Összp. | C56: =INDEX($B$140:$K$151,O52,$G$1) ->  | D56: =INDEX($B$84:$K$95,O52,$G$1) -> 
A57: =IF(ISBLANK(Jegyzőkönyv!B58),"",Jegyzőkönyv!B58) ->  | B57: Idő (p:mp:tmp): | C57: =INDEX($B$101:$K$112,O57,$G$1) -> 00:00:00 | E57: =Jegyzőkönyv!AH58 ->  | O57: 12
B58: Hiba (p:mp:tmp): | C58: =INDEX($B$122:$K$133,O57,$G$1) -> 00:00:00
B59: Össz.idő | C59: =SUM(C57:D58) -> 00:00:00
B60: Helyezés | C60: =IF(ISBLANK(C57),"",INDEX($B$68:$K$79,O57,$G$1)) -> 
B61: Pont/Összp. | C61: =INDEX($B$140:$K$151,O57,$G$1) ->  | D61: =INDEX($B$84:$K$95,O57,$G$1) -> 
A66: helyezés (versenyszám)
B67: 1. | C67: 2. | D67: 3. | E67: 4. | F67: 5. | G67: 6. | H67: 7. | I67: 8. | J67: 9. | K67: 10.
A68: 1. | B68: =Jegyzőkönyv!D6 -> 3 | C68: =Jegyzőkönyv!G6 -> 5 | D68: =Jegyzőkönyv!J6 -> 5 | E68: =Jegyzőkönyv!M6 -> 4 | F68: =Jegyzőkönyv!P6 -> 4 | G68: =Jegyzőkönyv!S6 -> 5 | H68: =Jegyzőkönyv!V6 -> 4 | I68: =Jegyzőkönyv!Y6 -> 5 | J68: =Jegyzőkönyv!AB6 -> 5 | K68: =Jegyzőkönyv!AE6 -> 2
A69: 2. | B69: =Jegyzőkönyv!D11 -> 5 | C69: =Jegyzőkönyv!G11 -> 4 | D69: =Jegyzőkönyv!J11 -> 4 | E69: =Jegyzőkönyv!M11 -> 5 | F69: =Jegyzőkönyv!P11 -> 1 | G69: =Jegyzőkönyv!S11 -> 4 | H69: =Jegyzőkönyv!V11 -> 2 | I69: =Jegyzőkönyv!Y11 -> 3 | J69: =Jegyzőkönyv!AB11 -> 4 | K69: =Jegyzőkönyv!AE11 -> 1
A70: 3. | B70: =Jegyzőkönyv!D16 -> 4 | C70: =Jegyzőkönyv!G16 -> 1 | D70: =Jegyzőkönyv!J16 -> 3 | E70: =Jegyzőkönyv!M16 -> 1 | F70: =Jegyzőkönyv!P16 -> 5 | G70: =Jegyzőkönyv!S16 -> 3 | H70: =Jegyzőkönyv!V16 -> 5 | I70: =Jegyzőkönyv!Y16 -> 4 | J70: =Jegyzőkönyv!AB16 -> 3 | K70: =Jegyzőkönyv!AE16 -> 5
A71: 4. | B71: =Jegyzőkönyv!D21 -> 1 | C71: =Jegyzőkönyv!G21 -> 3 | D71: =Jegyzőkönyv!J21 -> 2 | E71: =Jegyzőkönyv!M21 -> 3 | F71: =Jegyzőkönyv!P21 -> 2 | G71: =Jegyzőkönyv!S21 -> 2 | H71: =Jegyzőkönyv!V21 -> 1 | I71: =Jegyzőkönyv!Y21 -> 2 | J71: =Jegyzőkönyv!AB21 -> 2 | K71: =Jegyzőkönyv!AE21 -> 4
A72: 5. | B72: =Jegyzőkönyv!D26 -> 2 | C72: =Jegyzőkönyv!G26 -> 2 | D72: =Jegyzőkönyv!J26 -> 1 | E72: =Jegyzőkönyv!M26 -> 2 | F72: =Jegyzőkönyv!P26 -> 3 | G72: =Jegyzőkönyv!S26 -> 1 | H72: =Jegyzőkönyv!V26 -> 3 | I72: =Jegyzőkönyv!Y26 -> 1 | J72: =Jegyzőkönyv!AB26 -> 1 | K72: =Jegyzőkönyv!AE26 -> 3
A73: 6. | B73: =Jegyzőkönyv!D31 ->  | C73: =Jegyzőkönyv!G31 ->  | D73: =Jegyzőkönyv!J31 ->  | E73: =Jegyzőkönyv!M31 ->  | F73: =Jegyzőkönyv!P31 ->  | G73: =Jegyzőkönyv!S31 ->  | H73: =Jegyzőkönyv!V31 ->  | I73: =Jegyzőkönyv!Y31 ->  | J73: =Jegyzőkönyv!AB31 ->  | K73: =Jegyzőkönyv!AE31 -> 
A74: 7. | B74: =Jegyzőkönyv!D36 ->  | C74: =Jegyzőkönyv!G36 ->  | D74: =Jegyzőkönyv!J36 ->  | E74: =Jegyzőkönyv!M36 ->  | F74: =Jegyzőkönyv!P36 ->  | G74: =Jegyzőkönyv!S36 ->  | H74: =Jegyzőkönyv!V36 ->  | I74: =Jegyzőkönyv!Y36 ->  | J74: =Jegyzőkönyv!AB36 ->  | K74: =Jegyzőkönyv!AE36 -> 
A75: 8. | B75: =Jegyzőkönyv!D41 ->  | C75: =Jegyzőkönyv!G41 ->  | D75: =Jegyzőkönyv!J41 ->  | E75: =Jegyzőkönyv!M41 ->  | F75: =Jegyzőkönyv!P41 ->  | G75: =Jegyzőkönyv!S41 ->  | H75: =Jegyzőkönyv!V41 ->  | I75: =Jegyzőkönyv!Y41 ->  | J75: =Jegyzőkönyv!AB41 ->  | K75: =Jegyzőkönyv!AE41 -> 
A76: 9. | B76: =Jegyzőkönyv!D46 ->  | C76: =Jegyzőkönyv!G46 ->  | D76: =Jegyzőkönyv!J46 ->  | E76: =Jegyzőkönyv!M46 ->  | F76: =Jegyzőkönyv!P46 ->  | G76: =Jegyzőkönyv!S46 ->  | H76: =Jegyzőkönyv!V46 ->  | I76: =Jegyzőkönyv!Y46 ->  | J76: =Jegyzőkönyv!AB46 ->  | K76: =Jegyzőkönyv!AE46 -> 
A77: 10. | B77: =Jegyzőkönyv!D51 ->  | C77: =Jegyzőkönyv!G51 ->  | D77: =Jegyzőkönyv!J51 ->  | E77: =Jegyzőkönyv!M51 ->  | F77: =Jegyzőkönyv!P51 ->  | G77: =Jegyzőkönyv!S51 ->  | H77: =Jegyzőkönyv!V51 ->  | I77: =Jegyzőkönyv!Y51 ->  | J77: =Jegyzőkönyv!AB51 ->  | K77: =Jegyzőkönyv!AE51 -> 
A78: 11. | B78: =Jegyzőkönyv!D56 ->  | C78: =Jegyzőkönyv!G56 ->  | D78: =Jegyzőkönyv!J56 ->  | E78: =Jegyzőkönyv!M56 ->  | F78: =Jegyzőkönyv!P56 ->  | G78: =Jegyzőkönyv!S56 ->  | H78: =Jegyzőkönyv!V56 ->  | I78: =Jegyzőkönyv!Y56 ->  | J78: =Jegyzőkönyv!AB56 ->  | K78: =Jegyzőkönyv!AE56 -> 
A79: 12. | B79: =Jegyzőkönyv!D61 ->  | C79: =Jegyzőkönyv!G61 ->  | D79: =Jegyzőkönyv!J61 ->  | E79: =Jegyzőkönyv!M61 ->  | F79: =Jegyzőkönyv!P61 ->  | G79: =Jegyzőkönyv!S61 ->  | H79: =Jegyzőkönyv!V61 ->  | I79: =Jegyzőkönyv!Y61 ->  | J79: =Jegyzőkönyv!AB61 ->  | K79: =Jegyzőkönyv!AE61 -> 
A82: összpontok (versenyszámonként)
B83: 1. | C83: 2. | D83: 3. | E83: 4. | F83: 5. | G83: 6. | H83: 7. | I83: 8. | J83: 9. | K83: 10.
A84: 1. | B84: =Jegyzőkönyv!E7 -> 3 | C84: =Jegyzőkönyv!H7 -> 4 | D84: =Jegyzőkönyv!K7 -> 5 | E84: =Jegyzőkönyv!N7 -> 7 | F84: =Jegyzőkönyv!Q7 -> 9 | G84: =Jegyzőkönyv!T7 -> 10 | H84: =Jegyzőkönyv!W7 -> 12 | I84: =Jegyzőkönyv!Z7 -> 13 | J84: =Jegyzőkönyv!AC7 -> 14 | K84: =Jegyzőkönyv!AF7 -> 18
A85: 2. | B85: =Jegyzőkönyv!E12 -> 1 | C85: =Jegyzőkönyv!H12 -> 3 | D85: =Jegyzőkönyv!K12 -> 5 | E85: =Jegyzőkönyv!N12 -> 6 | F85: =Jegyzőkönyv!Q12 -> 11 | G85: =Jegyzőkönyv!T12 -> 13 | H85: =Jegyzőkönyv!W12 -> 17 | I85: =Jegyzőkönyv!Z12 -> 20 | J85: =Jegyzőkönyv!AC12 -> 22 | K85: =Jegyzőkönyv!AF12 -> 27
A86: 3. | B86: =Jegyzőkönyv!E17 -> 2 | C86: =Jegyzőkönyv!H17 -> 7 | D86: =Jegyzőkönyv!K17 -> 10 | E86: =Jegyzőkönyv!N17 -> 15 | F86: =Jegyzőkönyv!Q17 -> 16 | G86: =Jegyzőkönyv!T17 -> 19 | H86: =Jegyzőkönyv!W17 -> 20 | I86: =Jegyzőkönyv!Z17 -> 22 | J86: =Jegyzőkönyv!AC17 -> 25 | K86: =Jegyzőkönyv!AF17 -> 26
A87: 4. | B87: =Jegyzőkönyv!E22 -> 5 | C87: =Jegyzőkönyv!H22 -> 8 | D87: =Jegyzőkönyv!K22 -> 12 | E87: =Jegyzőkönyv!N22 -> 15 | F87: =Jegyzőkönyv!Q22 -> 19 | G87: =Jegyzőkönyv!T22 -> 23 | H87: =Jegyzőkönyv!W22 -> 28 | I87: =Jegyzőkönyv!Z22 -> 32 | J87: =Jegyzőkönyv!AC22 -> 36 | K87: =Jegyzőkönyv!AF22 -> 38
A88: 5. | B88: =Jegyzőkönyv!E27 -> 4 | C88: =Jegyzőkönyv!H27 -> 8 | D88: =Jegyzőkönyv!K27 -> 13 | E88: =Jegyzőkönyv!N27 -> 17 | F88: =Jegyzőkönyv!Q27 -> 20 | G88: =Jegyzőkönyv!T27 -> 25 | H88: =Jegyzőkönyv!W27 -> 28 | I88: =Jegyzőkönyv!Z27 -> 33 | J88: =Jegyzőkönyv!AC27 -> 38 | K88: =Jegyzőkönyv!AF27 -> 41
A89: 6. | B89: =Jegyzőkönyv!E32 ->  | C89: =Jegyzőkönyv!H32 ->  | D89: =Jegyzőkönyv!K32 ->  | E89: =Jegyzőkönyv!N32 ->  | F89: =Jegyzőkönyv!Q32 ->  | G89: =Jegyzőkönyv!T32 ->  | H89: =Jegyzőkönyv!W32 ->  | I89: =Jegyzőkönyv!Z32 ->  | J89: =Jegyzőkönyv!AC32 ->  | K89: =Jegyzőkönyv!AF32 -> 
A90: 7. | B90: =Jegyzőkönyv!E37 ->  | C90: =Jegyzőkönyv!H37 ->  | D90: =Jegyzőkönyv!K37 ->  | E90: =Jegyzőkönyv!N37 ->  | F90: =Jegyzőkönyv!Q37 ->  | G90: =Jegyzőkönyv!T37 ->  | H90: =Jegyzőkönyv!W37 ->  | I90: =Jegyzőkönyv!Z37 ->  | J90: =Jegyzőkönyv!AC37 ->  | K90: =Jegyzőkönyv!AF37 -> 
A91: 8. | B91: =Jegyzőkönyv!E42 ->  | C91: =Jegyzőkönyv!H42 ->  | D91: =Jegyzőkönyv!K42 ->  | E91: =Jegyzőkönyv!N42 ->  | F91: =Jegyzőkönyv!Q42 ->  | G91: =Jegyzőkönyv!T42 ->  | H91: =Jegyzőkönyv!W42 ->  | I91: =Jegyzőkönyv!Z42 ->  | J91: =Jegyzőkönyv!AC42 ->  | K91: =Jegyzőkönyv!AF42 -> 
A92: 9. | B92: =Jegyzőkönyv!E47 ->  | C92: =Jegyzőkönyv!H47 ->  | D92: =Jegyzőkönyv!K47 ->  | E92: =Jegyzőkönyv!N47 ->  | F92: =Jegyzőkönyv!Q47 ->  | G92: =Jegyzőkönyv!T47 ->  | H92: =Jegyzőkönyv!W47 ->  | I92: =Jegyzőkönyv!Z47 ->  | J92: =Jegyzőkönyv!AC47 ->  | K92: =Jegyzőkönyv!AF47 -> 
A93: 10. | B93: =Jegyzőkönyv!E52 ->  | C93: =Jegyzőkönyv!H52 ->  | D93: =Jegyzőkönyv!K52 ->  | E93: =Jegyzőkönyv!N52 ->  | F93: =Jegyzőkönyv!Q52 ->  | G93: =Jegyzőkönyv!T52 ->  | H93: =Jegyzőkönyv!W52 ->  | I93: =Jegyzőkönyv!Z52 ->  | J93: =Jegyzőkönyv!AC52 ->  | K93: =Jegyzőkönyv!AF52 -> 
A94: 11. | B94: =Jegyzőkönyv!E57 ->  | C94: =Jegyzőkönyv!H57 ->  | D94: =Jegyzőkönyv!K57 ->  | E94: =Jegyzőkönyv!N57 ->  | F94: =Jegyzőkönyv!Q57 ->  | G94: =Jegyzőkönyv!T57 ->  | H94: =Jegyzőkönyv!W57 ->  | I94: =Jegyzőkönyv!Z57 ->  | J94: =Jegyzőkönyv!AC57 ->  | K94: =Jegyzőkönyv!AF57 -> 
A95: 12. | B95: =Jegyzőkönyv!E62 ->  | C95: =Jegyzőkönyv!H62 ->  | D95: =Jegyzőkönyv!K62 ->  | E95: =Jegyzőkönyv!N62 ->  | F95: =Jegyzőkönyv!Q62 ->  | G95: =Jegyzőkönyv!T62 ->  | H95: =Jegyzőkönyv!W62 ->  | I95: =Jegyzőkönyv!Z62 ->  | J95: =Jegyzőkönyv!AC62 ->  | K95: =Jegyzőkönyv!AF62 -> 
A99: időeredmények
B100: 1. | C100: 2. | D100: 3. | E100: 4. | F100: 5. | G100: 6. | H100: 7. | I100: 8. | J100: 9. | K100: 10.
A101: 1. | B101: =Jegyzőkönyv!D3 -> 0.001510648148 | C101: =Jegyzőkönyv!G3 -> 0.0008461805556 | D101: =Jegyzőkönyv!J3 -> 0.001776041667 | E101: =Jegyzőkönyv!M3 -> 0.002547222222 | F101: =Jegyzőkönyv!P3 -> 0.0002615740741 | G101: =Jegyzőkönyv!S3 -> 0.001155092593 | H101: =Jegyzőkönyv!V3 -> 0.001707291667 | I101: =Jegyzőkönyv!Y3 -> 0.001262384259 | J101: =Jegyzőkönyv!AB3 -> 0.001576157407 | K101: =Jegyzőkönyv!AE3 -> 2
A102: 2. | B102: =Jegyzőkönyv!D8 -> 0.001504976852 | C102: =Jegyzőkönyv!G8 -> 0.0008268518519 | D102: =Jegyzőkönyv!J8 -> 0.001727199074 | E102: =Jegyzőkönyv!M8 -> 0.002741087963 | F102: =Jegyzőkönyv!P8 -> 0.0002380787037 | G102: =Jegyzőkönyv!S8 -> 0.001144560185 | H102: =Jegyzőkönyv!V8 -> 0.001692592593 | I102: =Jegyzőkönyv!Y8 -> 0.001112847222 | J102: =Jegyzőkönyv!AB8 -> 0.001550231481 | K102: =Jegyzőkönyv!AE8 -> 1
A103: 3. | B103: =Jegyzőkönyv!D13 -> 0.001515046296 | C103: =Jegyzőkönyv!G13 -> 0.0007208333333 | D103: =Jegyzőkönyv!J13 -> 0.001675578704 | E103: =Jegyzőkönyv!M13 -> 0.002404166667 | F103: =Jegyzőkönyv!P13 -> 0.0002618055556 | G103: =Jegyzőkönyv!S13 -> 0.001060300926 | H103: =Jegyzőkönyv!V13 -> 0.001701041667 | I103: =Jegyzőkönyv!Y13 -> 0.001219097222 | J103: =Jegyzőkönyv!AB13 -> 0.001554398148 | K103: =Jegyzőkönyv!AE13 -> 5
A104: 4. | B104: =Jegyzőkönyv!D18 -> 0.00146087963 | C104: =Jegyzőkönyv!G18 -> 0.0007630787037 | D104: =Jegyzőkönyv!J18 -> 0.001615509259 | E104: =Jegyzőkönyv!M18 -> 0.002493287037 | F104: =Jegyzőkönyv!P18 -> 0.0002471064815 | G104: =Jegyzőkönyv!S18 -> 0.001077199074 | H104: =Jegyzőkönyv!V18 -> 0.001728356481 | I104: =Jegyzőkönyv!Y18 -> 0.001140972222 | J104: =Jegyzőkönyv!AB18 -> 0.0015125 | K104: =Jegyzőkönyv!AE18 -> 4
A105: 5. | B105: =Jegyzőkönyv!D23 -> 0.001482986111 | C105: =Jegyzőkönyv!G23 -> 0.000734837963 | D105: =Jegyzőkönyv!J23 -> 0.00160162037 | E105: =Jegyzőkönyv!M23 -> 0.002379861111 | F105: =Jegyzőkönyv!P23 -> 0.0002541666667 | G105: =Jegyzőkönyv!S23 -> 0.001063078704 | H105: =Jegyzőkönyv!V23 -> 0.001763657407 | I105: =Jegyzőkönyv!Y23 -> 0.001081944444 | J105: =Jegyzőkönyv!AB23 -> 0.001525810185 | K105: =Jegyzőkönyv!AE23 -> 3
A106: 6. | B106: =Jegyzőkönyv!D28 -> 0 | C106: =Jegyzőkönyv!G28 -> 0 | D106: =Jegyzőkönyv!J28 -> 0 | E106: =Jegyzőkönyv!M28 -> 0 | F106: =Jegyzőkönyv!P28 -> 0 | G106: =Jegyzőkönyv!S28 -> 0 | H106: =Jegyzőkönyv!V28 -> 0 | I106: =Jegyzőkönyv!Y28 -> 0 | J106: =Jegyzőkönyv!AB28 -> 0 | K106: =Jegyzőkönyv!AE28 -> 0
A107: 7. | B107: =Jegyzőkönyv!D33 -> 0 | C107: =Jegyzőkönyv!G33 -> 0 | D107: =Jegyzőkönyv!J33 -> 0 | E107: =Jegyzőkönyv!M33 -> 0 | F107: =Jegyzőkönyv!P33 -> 0 | G107: =Jegyzőkönyv!S33 -> 0 | H107: =Jegyzőkönyv!V33 -> 0 | I107: =Jegyzőkönyv!Y33 -> 0 | J107: =Jegyzőkönyv!AB33 -> 0 | K107: =Jegyzőkönyv!AE33 -> 0
A108: 8. | B108: =Jegyzőkönyv!D38 -> 0 | C108: =Jegyzőkönyv!G38 -> 0 | D108: =Jegyzőkönyv!J38 -> 0 | E108: =Jegyzőkönyv!M38 -> 0 | F108: =Jegyzőkönyv!P38 -> 0 | G108: =Jegyzőkönyv!S38 -> 0 | H108: =Jegyzőkönyv!V38 -> 0 | I108: =Jegyzőkönyv!Y38 -> 0 | J108: =Jegyzőkönyv!AB38 -> 0 | K108: =Jegyzőkönyv!AE38 -> 0
A109: 9. | B109: =Jegyzőkönyv!D43 -> 0 | C109: =Jegyzőkönyv!G43 -> 0 | D109: =Jegyzőkönyv!J43 -> 0 | E109: =Jegyzőkönyv!M43 -> 0 | F109: =Jegyzőkönyv!P43 -> 0 | G109: =Jegyzőkönyv!S43 -> 0 | H109: =Jegyzőkönyv!V43 -> 0 | I109: =Jegyzőkönyv!Y43 -> 0 | J109: =Jegyzőkönyv!AB43 -> 0 | K109: =Jegyzőkönyv!AE43 -> 0
A110: 10. | B110: =Jegyzőkönyv!D48 -> 0 | C110: =Jegyzőkönyv!G48 -> 0 | D110: =Jegyzőkönyv!J48 -> 0 | E110: =Jegyzőkönyv!M48 -> 0 | F110: =Jegyzőkönyv!P48 -> 00:00:00 | G110: =Jegyzőkönyv!S48 -> 0 | H110: =Jegyzőkönyv!V48 -> 0 | I110: =Jegyzőkönyv!Y48 -> 0 | J110: =Jegyzőkönyv!AB48 -> 0 | K110: =Jegyzőkönyv!AE48 -> 0
A111: 11. | B111: =Jegyzőkönyv!D53 -> 0 | C111: =Jegyzőkönyv!G53 -> 0 | D111: =Jegyzőkönyv!J53 -> 0 | E111: =Jegyzőkönyv!M53 -> 0 | F111: =Jegyzőkönyv!P53 -> 00:00:00 | G111: =Jegyzőkönyv!S53 -> 0 | H111: =Jegyzőkönyv!V53 -> 0 | I111: =Jegyzőkönyv!Y53 -> 0 | J111: =Jegyzőkönyv!AB53 -> 0 | K111: =Jegyzőkönyv!AE53 -> 0
A112: 12. | B112: =Jegyzőkönyv!D58 -> 0 | C112: =Jegyzőkönyv!G48 -> 0 | D112: =Jegyzőkönyv!J48 -> 0 | E112: =Jegyzőkönyv!M48 -> 0 | F112: =Jegyzőkönyv!P48 -> 00:00:00 | G112: =Jegyzőkönyv!S48 -> 0 | H112: =Jegyzőkönyv!V48 -> 0 | I112: =Jegyzőkönyv!Y48 -> 0 | J112: =Jegyzőkönyv!AB48 -> 0 | K112: =Jegyzőkönyv!AE48 -> 0
A120: hibák
B121: 1. | C121: 2. | D121: 3. | E121: 4. | F121: 5. | G121: 6. | H121: 7. | I121: 8. | J121: 9. | K121: 10.
A122: 1. | B122: =Jegyzőkönyv!D4 -> 0 | C122: =Jegyzőkönyv!G4 -> 0 | D122: =Jegyzőkönyv!J4 -> 0 | E122: =Jegyzőkönyv!M4 -> 0 | F122: =Jegyzőkönyv!P4 -> 0 | G122: =Jegyzőkönyv!S4 -> 5.787037037e-05 | H122: =Jegyzőkönyv!V4 -> 5.787037037e-05 | I122: =Jegyzőkönyv!Y4 -> 0 | J122: =Jegyzőkönyv!AB4 -> 0 | K122: =Jegyzőkönyv!AE4 -> 0
A123: 2. | B123: =Jegyzőkönyv!D9 -> 1.157407407e-05 | C123: =Jegyzőkönyv!G9 -> 1.157407407e-05 | D123: =Jegyzőkönyv!J9 -> 0 | E123: =Jegyzőkönyv!M9 -> 0 | F123: =Jegyzőkönyv!P9 -> 0 | G123: =Jegyzőkönyv!S9 -> 0 | H123: =Jegyzőkönyv!V9 -> 5.787037037e-05 | I123: =Jegyzőkönyv!Y9 -> 5.787037037e-05 | J123: =Jegyzőkönyv!AB9 -> 1.157407407e-05 | K123: =Jegyzőkönyv!AE9 -> 0
A124: 3. | B124: =Jegyzőkönyv!D14 -> 0 | C124: =Jegyzőkönyv!G14 -> 0 | D124: =Jegyzőkönyv!J14 -> 0 | E124: =Jegyzőkönyv!M14 -> 0 | F124: =Jegyzőkönyv!P14 -> 0 | G124: =Jegyzőkönyv!S14 -> 4.62962963e-05 | H124: =Jegyzőkönyv!V14 -> 0.0001736111111 | I124: =Jegyzőkönyv!Y14 -> 2.314814815e-05 | J124: =Jegyzőkönyv!AB14 -> 0 | K124: =Jegyzőkönyv!AE14 -> 0
A125: 4. | B125: =Jegyzőkönyv!D19 -> 1.157407407e-05 | C125: =Jegyzőkönyv!G19 -> 1.157407407e-05 | D125: =Jegyzőkönyv!J19 -> 0 | E125: =Jegyzőkönyv!M19 -> 2.314814815e-05 | F125: =Jegyzőkönyv!P19 -> 0 | G125: =Jegyzőkönyv!S19 -> 0 | H125: =Jegyzőkönyv!V19 -> 0 | I125: =Jegyzőkönyv!Y19 -> 0 | J125: =Jegyzőkönyv!AB19 -> 2.314814815e-05 | K125: =Jegyzőkönyv!AE19 -> 0
A126: 5. | B126: =Jegyzőkönyv!D24 -> 0 | C126: =Jegyzőkönyv!G24 -> 0 | D126: =Jegyzőkönyv!J24 -> 0 | E126: =Jegyzőkönyv!M24 -> 4.62962963e-05 | F126: =Jegyzőkönyv!P24 -> 0 | G126: =Jegyzőkönyv!S24 -> 0 | H126: =Jegyzőkönyv!V24 -> 0 | I126: =Jegyzőkönyv!Y24 -> 2.314814815e-05 | J126: =Jegyzőkönyv!AB24 -> 0 | K126: =Jegyzőkönyv!AE24 -> 0
A127: 6. | B127: =Jegyzőkönyv!D29 -> 0 | C127: =Jegyzőkönyv!G29 -> 0 | D127: =Jegyzőkönyv!J29 -> 0 | E127: =Jegyzőkönyv!M29 -> 0 | F127: =Jegyzőkönyv!P29 -> 0 | G127: =Jegyzőkönyv!S29 -> 0 | H127: =Jegyzőkönyv!V29 -> 0 | I127: =Jegyzőkönyv!Y29 -> 0 | J127: =Jegyzőkönyv!AB29 -> 0 | K127: =Jegyzőkönyv!AE29 -> 0
A128: 7. | B128: =Jegyzőkönyv!D34 -> 0 | C128: =Jegyzőkönyv!G34 -> 0 | D128: =Jegyzőkönyv!J34 -> 0 | E128: =Jegyzőkönyv!M34 -> 0 | F128: =Jegyzőkönyv!P34 -> 0 | G128: =Jegyzőkönyv!S34 -> 0 | H128: =Jegyzőkönyv!V34 -> 0 | I128: =Jegyzőkönyv!Y34 -> 0 | J128: =Jegyzőkönyv!AB34 -> 0 | K128: =Jegyzőkönyv!AE34 -> 0
A129: 8. | B129: =Jegyzőkönyv!D39 -> 0 | C129: =Jegyzőkönyv!G39 -> 0 | D129: =Jegyzőkönyv!J39 -> 0 | E129: =Jegyzőkönyv!M39 -> 0 | F129: =Jegyzőkönyv!P39 -> 0 | G129: =Jegyzőkönyv!S39 -> 0 | H129: =Jegyzőkönyv!V39 -> 0 | I129: =Jegyzőkönyv!Y39 -> 0 | J129: =Jegyzőkönyv!AB39 -> 0 | K129: =Jegyzőkönyv!AE39 -> 0
A130: 9. | B130: =Jegyzőkönyv!D44 -> 0 | C130: =Jegyzőkönyv!G44 -> 0 | D130: =Jegyzőkönyv!J44 -> 0 | E130: =Jegyzőkönyv!M44 -> 0 | F130: =Jegyzőkönyv!P44 -> 0 | G130: =Jegyzőkönyv!S44 -> 0 | H130: =Jegyzőkönyv!V44 -> 0 | I130: =Jegyzőkönyv!Y44 -> 0 | J130: =Jegyzőkönyv!AB44 -> 0 | K130: =Jegyzőkönyv!AE44 -> 0
A131: 10. | B131: =Jegyzőkönyv!D49 -> 0 | C131: =Jegyzőkönyv!G49 -> 0 | D131: =Jegyzőkönyv!J49 -> 0 | E131: =Jegyzőkönyv!M49 -> 0 | F131: =Jegyzőkönyv!P49 -> 0 | G131: =Jegyzőkönyv!S49 -> 0 | H131: =Jegyzőkönyv!V49 -> 0 | I131: =Jegyzőkönyv!Y49 -> 0 | J131: =Jegyzőkönyv!AB49 -> 0 | K131: =Jegyzőkönyv!AE49 -> 0
A132: 11. | B132: =Jegyzőkönyv!D54 -> 0 | C132: =Jegyzőkönyv!G54 -> 0 | D132: =Jegyzőkönyv!J54 -> 0 | E132: =Jegyzőkönyv!M54 -> 0 | F132: =Jegyzőkönyv!P54 -> 0 | G132: =Jegyzőkönyv!S54 -> 0 | H132: =Jegyzőkönyv!V54 -> 0 | I132: =Jegyzőkönyv!Y54 -> 0 | J132: =Jegyzőkönyv!AB54 -> 0 | K132: =Jegyzőkönyv!AE54 -> 0
A133: 12. | B133: =Jegyzőkönyv!D59 -> 0 | C133: =Jegyzőkönyv!G59 -> 0 | D133: =Jegyzőkönyv!J59 -> 0 | E133: =Jegyzőkönyv!M59 -> 0 | F133: =Jegyzőkönyv!P59 -> 0 | G133: =Jegyzőkönyv!S59 -> 0 | H133: =Jegyzőkönyv!V59 -> 0 | I133: =Jegyzőkönyv!Y59 -> 0 | J133: =Jegyzőkönyv!AB59 -> 0 | K133: =Jegyzőkönyv!AE59 -> 0
A138: pont
B139: 1. | C139: 2. | D139: 3. | E139: 4. | F139: 5. | G139: 6. | H139: 7. | I139: 8. | J139: 9. | K139: 10.
A140: 1. | B140: =Jegyzőkönyv!D7 -> 3 | C140: =Jegyzőkönyv!G7 -> 1 | D140: =Jegyzőkönyv!J7 -> 1 | E140: =Jegyzőkönyv!M7 -> 2 | F140: =Jegyzőkönyv!P7 -> 2 | G140: =Jegyzőkönyv!S7 -> 1 | H140: =Jegyzőkönyv!V7 -> 2 | I140: =Jegyzőkönyv!Y7 -> 1 | J140: =Jegyzőkönyv!AB7 -> 1 | K140: =Jegyzőkönyv!AE7 -> 4
A141: 2. | B141: =Jegyzőkönyv!D12 -> 1 | C141: =Jegyzőkönyv!G12 -> 2 | D141: =Jegyzőkönyv!J12 -> 2 | E141: =Jegyzőkönyv!M12 -> 1 | F141: =Jegyzőkönyv!P12 -> 5 | G141: =Jegyzőkönyv!S12 -> 2 | H141: =Jegyzőkönyv!V12 -> 4 | I141: =Jegyzőkönyv!Y12 -> 3 | J141: =Jegyzőkönyv!AB12 -> 2 | K141: =Jegyzőkönyv!AE12 -> 5
A142: 3. | B142: =Jegyzőkönyv!D17 -> 2 | C142: =Jegyzőkönyv!G17 -> 5 | D142: =Jegyzőkönyv!J17 -> 3 | E142: =Jegyzőkönyv!M17 -> 5 | F142: =Jegyzőkönyv!P17 -> 1 | G142: =Jegyzőkönyv!S17 -> 3 | H142: =Jegyzőkönyv!V17 -> 1 | I142: =Jegyzőkönyv!Y17 -> 2 | J142: =Jegyzőkönyv!AB17 -> 3 | K142: =Jegyzőkönyv!AE17 -> 1
A143: 4. | B143: =Jegyzőkönyv!D22 -> 5 | C143: =Jegyzőkönyv!G22 -> 3 | D143: =Jegyzőkönyv!J22 -> 4 | E143: =Jegyzőkönyv!M22 -> 3 | F143: =Jegyzőkönyv!P22 -> 4 | G143: =Jegyzőkönyv!S22 -> 4 | H143: =Jegyzőkönyv!V22 -> 5 | I143: =Jegyzőkönyv!Y22 -> 4 | J143: =Jegyzőkönyv!AB22 -> 4 | K143: =Jegyzőkönyv!AE22 -> 2
A144: 5. | B144: =Jegyzőkönyv!D27 -> 4 | C144: =Jegyzőkönyv!G27 -> 4 | D144: =Jegyzőkönyv!J27 -> 5 | E144: =Jegyzőkönyv!M27 -> 4 | F144: =Jegyzőkönyv!P27 -> 3 | G144: =Jegyzőkönyv!S27 -> 5 | H144: =Jegyzőkönyv!V27 -> 3 | I144: =Jegyzőkönyv!Y27 -> 5 | J144: =Jegyzőkönyv!AB27 -> 5 | K144: =Jegyzőkönyv!AE27 -> 3
A145: 6. | B145: =Jegyzőkönyv!D32 ->  | C145: =Jegyzőkönyv!G32 ->  | D145: =Jegyzőkönyv!J32 ->  | E145: =Jegyzőkönyv!M32 ->  | F145: =Jegyzőkönyv!P32 ->  | G145: =Jegyzőkönyv!S32 ->  | H145: =Jegyzőkönyv!V32 ->  | I145: =Jegyzőkönyv!Y32 ->  | J145: =Jegyzőkönyv!AB32 ->  | K145: =Jegyzőkönyv!AE32 -> 
A146: 7. | B146: =Jegyzőkönyv!D37 ->  | C146: =Jegyzőkönyv!G37 ->  | D146: =Jegyzőkönyv!J37 ->  | E146: =Jegyzőkönyv!M37 ->  | F146: =Jegyzőkönyv!P37 ->  | G146: =Jegyzőkönyv!S37 ->  | H146: =Jegyzőkönyv!V37 ->  | I146: =Jegyzőkönyv!Y37 ->  | J146: =Jegyzőkönyv!AB37 ->  | K146: =Jegyzőkönyv!AE37 -> 
A147: 8. | B147: =Jegyzőkönyv!D42 ->  | C147: =Jegyzőkönyv!G42 ->  | D147: =Jegyzőkönyv!J42 ->  | E147: =Jegyzőkönyv!M42 ->  | F147: =Jegyzőkönyv!P42 ->  | G147: =Jegyzőkönyv!S42 ->  | H147: =Jegyzőkönyv!V42 ->  | I147: =Jegyzőkönyv!Y42 ->  | J147: =Jegyzőkönyv!AB42 ->  | K147: =Jegyzőkönyv!AE42 -> 
A148: 9. | B148: =Jegyzőkönyv!D47 ->  | C148: =Jegyzőkönyv!G47 ->  | D148: =Jegyzőkönyv!J47 ->  | E148: =Jegyzőkönyv!M47 ->  | F148: =Jegyzőkönyv!P47 ->  | G148: =Jegyzőkönyv!S47 ->  | H148: =Jegyzőkönyv!V47 ->  | I148: =Jegyzőkönyv!Y47 ->  | J148: =Jegyzőkönyv!AB47 ->  | K148: =Jegyzőkönyv!AE47 -> 
A149: 10. | B149: =Jegyzőkönyv!D52 ->  | C149: =Jegyzőkönyv!G52 ->  | D149: =Jegyzőkönyv!J52 ->  | E149: =Jegyzőkönyv!M52 ->  | F149: =Jegyzőkönyv!P52 ->  | G149: =Jegyzőkönyv!S52 ->  | H149: =Jegyzőkönyv!V52 ->  | I149: =Jegyzőkönyv!Y52 ->  | J149: =Jegyzőkönyv!AB52 ->  | K149: =Jegyzőkönyv!AE52 -> 
A150: 11. | B150: =Jegyzőkönyv!D57 ->  | C150: =Jegyzőkönyv!G57 ->  | D150: =Jegyzőkönyv!J57 ->  | E150: =Jegyzőkönyv!M57 ->  | F150: =Jegyzőkönyv!P57 ->  | G150: =Jegyzőkönyv!S57 ->  | H150: =Jegyzőkönyv!V57 ->  | I150: =Jegyzőkönyv!Y57 ->  | J150: =Jegyzőkönyv!AB57 ->  | K150: =Jegyzőkönyv!AE57 -> 
A151: 12. | B151: =Jegyzőkönyv!D62 ->  | C151: =Jegyzőkönyv!G62 ->  | D151: =Jegyzőkönyv!J62 ->  | E151: =Jegyzőkönyv!M62 ->  | F151: =Jegyzőkönyv!P62 ->  | G151: =Jegyzőkönyv!S62 ->  | H151: =Jegyzőkönyv!V62 ->  | I151: =Jegyzőkönyv!Y62 ->  | J151: =Jegyzőkönyv!AB62 ->  | K151: =Jegyzőkönyv!AE62 -> 
A155: idő/pont
B156: 1. | C156: 2. | D156: 3. | E156: 4. | F156: 5. | G156: 6. | H156: 7. | I156: 8. | J156: 9. | K156: 10.
B157: =Jegyzőkönyv!D45 -> 0 | C157: =Jegyzőkönyv!G45 -> 0 | D157: =Jegyzőkönyv!J45 -> 0 | E157: =Jegyzőkönyv!M45 -> 0 | F157: =Jegyzőkönyv!P45 -> 0 | G157: =Jegyzőkönyv!S45 -> 0 | H157: =Jegyzőkönyv!V45 -> 0 | I157: =Jegyzőkönyv!Y45 -> 0 | J157: =Jegyzőkönyv!AB45 -> 0 | K157: =Jegyzőkönyv!AE45 -> 0

Sheet Végeredmény
A1: Helyezés | B1: Iskola | C1: Pontszám | F1: =Jegyzőkönyv!AG3 -> 18 | G1: =Jegyzőkönyv!AH3 -> 5 | H1: =Jegyzőkönyv!B3 -> Pécs
A2: =IF(H1="","","I.") -> I. | B2: =IF(F1="","",INDEX($H$1:$H$12,MATCH(C2,$F$1:$F$12,0))) -> Szombathely | C2: =IF(F1="","",LARGE($F$1:$F$12,D2)) -> 41 | D2: 1 | F2: =Jegyzőkönyv!AG8 -> 27 | G2: =Jegyzőkönyv!AH8 -> 3 | H2: =Jegyzőkönyv!B8 -> Békés
A3: =IF(H2="","","II.") -> II. | B3: Törökbálint | C3: 38 | D3: 2 | F3: =Jegyzőkönyv!AG13 -> 26 | G3: =Jegyzőkönyv!AH13 -> 4 | H3: =Jegyzőkönyv!B13 -> Hajdúböszörmény
A4: =IF(H3="","","III.") -> III. | B4: Békés | C4: 27 | D4: 3 | F4: =Jegyzőkönyv!AG18 -> 38 | G4: =Jegyzőkönyv!AH18 -> 2 | H4: =Jegyzőkönyv!B18 -> Törökbálint
A5: =IF(H4="","","IV.") -> IV. | B5: Hajdúböszörmény | C5: 26 | D5: 4 | F5: =Jegyzőkönyv!AG23 -> 41 | G5: =Jegyzőkönyv!AH23 -> 1 | H5: =Jegyzőkönyv!B23 -> Szombathely
A6: =IF(H5="","","V.") -> V. | B6: Pécs | C6: 18 | D6: 5 | F6: =Jegyzőkönyv!AG28 ->  | G6: =Jegyzőkönyv!AH28 ->  | H6: =Jegyzőkönyv!B28 -> 0
A7: =IF(H6="","","VI.") -> VI. | D7: 6 | F7: =Jegyzőkönyv!AG33 ->  | G7: =Jegyzőkönyv!AH33 ->  | H7: =Jegyzőkönyv!B33 -> 0
A8: =IF(H7="","","VII.") -> VII. | D8: 7 | F8: =Jegyzőkönyv!AG38 ->  | G8: =Jegyzőkönyv!AH38 ->  | H8: =Jegyzőkönyv!B38 -> 0
A9: =IF(H8="","","VIII.") -> VIII. | D9: 8 | F9: =Jegyzőkönyv!AG43 ->  | G9: =Jegyzőkönyv!AH43 ->  | H9: =Jegyzőkönyv!B43 -> 0
A10: =IF(H9="","","IX.") -> IX. | D10: 9 | F10: =Jegyzőkönyv!AG48 ->  | G10: =Jegyzőkönyv!AH48 ->  | H10: =Jegyzőkönyv!B48 -> 0
A11: =IF(H10="","","X.") -> X. | D11: 10 | F11: =Jegyzőkönyv!AG53 ->  | G11: =Jegyzőkönyv!AH53 ->  | H11: =Jegyzőkönyv!B53 -> 0
A12: =IF(H11="","","XI.") -> XI. | D12: 11 | F12: =Jegyzőkönyv!AG58 ->  | G12: =Jegyzőkönyv!AH58 ->  | H12: =Jegyzőkönyv!B58 -> 0
A13: =IF(H12="","","XII.") -> XII. | D13: 12

Sheet Kivetítő
A1: =IF(Versenyszámok!B13="","",Versenyszámok!B13) -> 
A2: Ssz. | B2: Csapat | C2: =Jegyzőkönyv!D2 -> 1. Futás váltóbottal | E2: =Jegyzőkönyv!G2 -> 2. Négykézlábjárás | G2: =Jegyzőkönyv!J2 -> 3. Alagúton át | I2: =Jegyzőkönyv!M2 -> 4. Labdás ügyességi váltó | K2: =Jegyzőkönyv!P2 -> 5. Hídakadály | M2: =Jegyzőkönyv!S2 -> 6. Bújj és karikában fuss | O2: =Jegyzőkönyv!V2 -> 7. Karikarakó | Q2: =Jegyzőkönyv!Y2 -> 8. Szlalom kézilabda | S2: =Jegyzőkönyv!AB2 -> 9. Karikán az akadályra | U2: =Jegyzőkönyv!AE2 -> 10. Bombázó | W2: Összessített
C3: Pontszám | D3: Helyezés | E3: Pontszám | F3: Helyezés | G3: Pontszám | H3: Helyezés | I3: Pontszám | J3: Helyezés | K3: Pontszám | L3: Helyezés | M3: Pontszám | N3: Helyezés | O3: Pontszám | P3: Helyezés | Q3: Pontszám | R3: Helyezés | S3: Pontszám | T3: Helyezés | U3: Pontszám | V3: Helyezés | W3: Pontszám | X3: Helyezés
A4: 1 | B4: =IF(ISBLANK(Jegyzőkönyv!B3),"",Jegyzőkönyv!B3) -> Pécs | C4: =Jegyzőkönyv!D7 -> 3 | D4: =Jegyzőkönyv!D6 -> 3 | E4: =Jegyzőkönyv!G7 -> 1 | F4: =Jegyzőkönyv!G6 -> 5 | G4: =Jegyzőkönyv!J7 -> 1 | H4: =Jegyzőkönyv!J6 -> 5 | I4: =Jegyzőkönyv!M7 -> 2 | J4: =Jegyzőkönyv!M6 -> 4 | K4: =Jegyzőkönyv!P7 -> 2 | L4: =Jegyzőkönyv!P6 -> 4 | M4: =Jegyzőkönyv!S7 -> 1 | N4: =Jegyzőkönyv!S6 -> 5 | O4: =Jegyzőkönyv!V7 -> 2 | P4: =Jegyzőkönyv!V6 -> 4 | Q4: =Jegyzőkönyv!Y7 -> 1 | R4: =Jegyzőkönyv!Y6 -> 5 | S4: =Jegyzőkönyv!AB7 -> 1 | T4: =Jegyzőkönyv!AB6 -> 5 | U4: =Jegyzőkönyv!AE7 -> 4 | V4: =Jegyzőkönyv!AE6 -> 2 | W4: =Jegyzőkönyv!AG3 -> 18 | X4: =Jegyzőkönyv!AH3 -> 5
A5: 2 | B5: =IF(ISBLANK(Jegyzőkönyv!B8),"",Jegyzőkönyv!B8) -> Békés | C5: =Jegyzőkönyv!D12 -> 1 | D5: =Jegyzőkönyv!D11 -> 5 | E5: =Jegyzőkönyv!G12 -> 2 | F5: =Jegyzőkönyv!G11 -> 4 | G5: =Jegyzőkönyv!J12 -> 2 | H5: =Jegyzőkönyv!J11 -> 4 | I5: =Jegyzőkönyv!M12 -> 1 | J5: =Jegyzőkönyv!M11 -> 5 | K5: =Jegyzőkönyv!P12 -> 5 | L5: =Jegyzőkönyv!P11 -> 1 | M5: =Jegyzőkönyv!S12 -> 2 | N5: =Jegyzőkönyv!S11 -> 4 | O5: =Jegyzőkönyv!V12 -> 4 | P5: =Jegyzőkönyv!V11 -> 2 | Q5: =Jegyzőkönyv!Y12 -> 3 | R5: =Jegyzőkönyv!Y11 -> 3 | S5: =Jegyzőkönyv!AB12 -> 2 | T5: =Jegyzőkönyv!AB11 -> 4 | U5: =Jegyzőkönyv!AE12 -> 5 | V5: =Jegyzőkönyv!AE11 -> 1 | W5: =Jegyzőkönyv!AG8 -> 27 | X5: =Jegyzőkönyv!AH8 -> 3
A6: 3 | B6: =IF(ISBLANK(Jegyzőkönyv!B13),"",Jegyzőkönyv!B13) -> Hajdúböszörmény | C6: =Jegyzőkönyv!D17 -> 2 | D6: =Jegyzőkönyv!D16 -> 4 | E6: =Jegyzőkönyv!G17 -> 5 | F6: =Jegyzőkönyv!G16 -> 1 | G6: =Jegyzőkönyv!J17 -> 3 | H6: =Jegyzőkönyv!J16 -> 3 | I6: =Jegyzőkönyv!M17 -> 5 | J6: =Jegyzőkönyv!M16 -> 1 | K6: =Jegyzőkönyv!P17 -> 1 | L6: =Jegyzőkönyv!P16 -> 5 | M6: =Jegyzőkönyv!S17 -> 3 | N6: =Jegyzőkönyv!S16 -> 3 | O6: =Jegyzőkönyv!V17 -> 1 | P6: =Jegyzőkönyv!V16 -> 5 | Q6: =Jegyzőkönyv!Y17 -> 2 | R6: =Jegyzőkönyv!Y16 -> 4 | S6: =Jegyzőkönyv!AB17 -> 3 | T6: =Jegyzőkönyv!AB16 -> 3 | U6: =Jegyzőkönyv!AE17 -> 1 | V6: =Jegyzőkönyv!AE16 -> 5 | W6: =Jegyzőkönyv!AG13 -> 26 | X6: =Jegyzőkönyv!AH13 -> 4
A7: 4 | B7: =IF(ISBLANK(Jegyzőkönyv!B18),"",Jegyzőkönyv!B18) -> Törökbálint | C7: =Jegyzőkönyv!D22 -> 5 | D7: =Jegyzőkönyv!D21 -> 1 | E7: =Jegyzőkönyv!G22 -> 3 | F7: =Jegyzőkönyv!G21 -> 3 | G7: =Jegyzőkönyv!J22 -> 4 | H7: =Jegyzőkönyv!J21 -> 2 | I7: =Jegyzőkönyv!M22 -> 3 | J7: =Jegyzőkönyv!M21 -> 3 | K7: =Jegyzőkönyv!P22 -> 4 | L7: =Jegyzőkönyv!P21 -> 2 | M7: =Jegyzőkönyv!S22 -> 4 | N7: =Jegyzőkönyv!S21 -> 2 | O7: =Jegyzőkönyv!V22 -> 5 | P7: =Jegyzőkönyv!V21 -> 1 | Q7: =Jegyzőkönyv!Y22 -> 4 | R7: =Jegyzőkönyv!Y21 -> 2 | S7: =Jegyzőkönyv!AB22 -> 4 | T7: =Jegyzőkönyv!AB21 -> 2 | U7: =Jegyzőkönyv!AE22 -> 2 | V7: =Jegyzőkönyv!AE21 -> 4 | W7: =Jegyzőkönyv!AG18 -> 38 | X7: =Jegyzőkönyv!AH18 -> 2
A8: 5 | B8: =IF(ISBLANK(Jegyzőkönyv!B23),"",Jegyzőkönyv!B23) -> Szombathely | C8: =Jegyzőkönyv!D27 -> 4 | D8: =Jegyzőkönyv!D26 -> 2 | E8: =Jegyzőkönyv!G27 -> 4 | F8: =Jegyzőkönyv!G26 -> 2 | G8: =Jegyzőkönyv!J27 -> 5 | H8: =Jegyzőkönyv!J26 -> 1 | I8: =Jegyzőkönyv!M27 -> 4 | J8: =Jegyzőkönyv!M26 -> 2 | K8: =Jegyzőkönyv!P27 -> 3 | L8: =Jegyzőkönyv!P26 -> 3 | M8: =Jegyzőkönyv!S27 -> 5 | N8: =Jegyzőkönyv!S26 -> 1 | O8: =Jegyzőkönyv!V27 -> 3 | P8: =Jegyzőkönyv!V26 -> 3 | Q8: =Jegyzőkönyv!Y27 -> 5 | R8: =Jegyzőkönyv!Y26 -> 1 | S8: =Jegyzőkönyv!AB27 -> 5 | T8: =Jegyzőkönyv!AB26 -> 1 | U8: =Jegyzőkönyv!AE27 -> 3 | V8: =Jegyzőkönyv!AE26 -> 3 | W8: =Jegyzőkönyv!AG23 -> 41 | X8: =Jegyzőkönyv!AH23 -> 1
A9: 6 | B9: =IF(ISBLANK(Jegyzőkönyv!B28),"",Jegyzőkönyv!B28) ->  | C9: =Jegyzőkönyv!D32 ->  | D9: =Jegyzőkönyv!D31 ->  | E9: =Jegyzőkönyv!G32 ->  | F9: =Jegyzőkönyv!G31 ->  | G9: =Jegyzőkönyv!J32 ->  | H9: =Jegyzőkönyv!J31 ->  | I9: =Jegyzőkönyv!M32 ->  | J9: =Jegyzőkönyv!M31 ->  | K9: =Jegyzőkönyv!P32 ->  | L9: =Jegyzőkönyv!P31 ->  | M9: =Jegyzőkönyv!S32 ->  | N9: =Jegyzőkönyv!S31 ->  | O9: =Jegyzőkönyv!V32 ->  | P9: =Jegyzőkönyv!V31 ->  | Q9: =Jegyzőkönyv!Y32 ->  | R9: =Jegyzőkönyv!Y31 ->  | S9: =Jegyzőkönyv!AB32 ->  | T9: =Jegyzőkönyv!AB31 ->  | U9: =Jegyzőkönyv!AE32 ->  | V9: =Jegyzőkönyv!AE31 ->  | W9: =Jegyzőkönyv!AG28 ->  | X9: =Jegyzőkönyv!AH28 -> 
A10: 7 | B10: =IF(ISBLANK(Jegyzőkönyv!B33),"",Jegyzőkönyv!B33) ->  | C10: =Jegyzőkönyv!D37 ->  | D10: =Jegyzőkönyv!D36 ->  | E10: =Jegyzőkönyv!G37 ->  | F10: =Jegyzőkönyv!G36 ->  | G10: =Jegyzőkönyv!J37 ->  | H10: =Jegyzőkönyv!J36 ->  | I10: =Jegyzőkönyv!M37 ->  | J10: =Jegyzőkönyv!M36 ->  | K10: =Jegyzőkönyv!P37 ->  | L10: =Jegyzőkönyv!P36 ->  | M10: =Jegyzőkönyv!S37 ->  | N10: =Jegyzőkönyv!S36 ->  | O10: =Jegyzőkönyv!V37 ->  | P10: =Jegyzőkönyv!V36 ->  | Q10: =Jegyzőkönyv!Y37 ->  | R10: =Jegyzőkönyv!Y36 ->  | S10: =Jegyzőkönyv!AB37 ->  | T10: =Jegyzőkönyv!AB36 ->  | U10: =Jegyzőkönyv!AE37 ->  | V10: =Jegyzőkönyv!AE36 ->  | W10: =Jegyzőkönyv!AG33 ->  | X10: =Jegyzőkönyv!AH33 -> 
A11: 8 | B11: =IF(ISBLANK(Jegyzőkönyv!B38),"",Jegyzőkönyv!B38) ->  | C11: =Jegyzőkönyv!D42 ->  | D11: =Jegyzőkönyv!D41 ->  | E11: =Jegyzőkönyv!G42 ->  | F11: =Jegyzőkönyv!G41 ->  | G11: =Jegyzőkönyv!J42 ->  | H11: =Jegyzőkönyv!J41 ->  | I11: =Jegyzőkönyv!M42 ->  | J11: =Jegyzőkönyv!M41 ->  | K11: =Jegyzőkönyv!P42 ->  | L11: =Jegyzőkönyv!P41 ->  | M11: =Jegyzőkönyv!S42 ->  | N11: =Jegyzőkönyv!S41 ->  | O11: =Jegyzőkönyv!V42 ->  | P11: =Jegyzőkönyv!V41 ->  | Q11: =Jegyzőkönyv!Y42 ->  | R11: =Jegyzőkönyv!Y41 ->  | S11: =Jegyzőkönyv!AB42 ->  | T11: =Jegyzőkönyv!AB41 ->  | U11: =Jegyzőkönyv!AE42 ->  | V11: =Jegyzőkönyv!AE41 ->  | W11: =Jegyzőkönyv!AG38 ->  | X11: =Jegyzőkönyv!AH38 -> 
A12: 9 | B12: =IF(ISBLANK(Jegyzőkönyv!B43),"",Jegyzőkönyv!B43) ->  | C12: =Jegyzőkönyv!D47 ->  | D12: =Jegyzőkönyv!D46 ->  | E12: =Jegyzőkönyv!G47 ->  | F12: =Jegyzőkönyv!G46 ->  | G12: =Jegyzőkönyv!J47 ->  | H12: =Jegyzőkönyv!J46 ->  | I12: =Jegyzőkönyv!M47 ->  | J12: =Jegyzőkönyv!M46 ->  | K12: =Jegyzőkönyv!P47 ->  | L12: =Jegyzőkönyv!P46 ->  | M12: =Jegyzőkönyv!S47 ->  | N12: =Jegyzőkönyv!S46 ->  | O12: =Jegyzőkönyv!V47 ->  | P12: =Jegyzőkönyv!V46 ->  | Q12: =Jegyzőkönyv!Y47 ->  | R12: =Jegyzőkönyv!Y46 ->  | S12: =Jegyzőkönyv!AB47 ->  | T12: =Jegyzőkönyv!AB46 ->  | U12: =Jegyzőkönyv!AE47 ->  | V12: =Jegyzőkönyv!AE46 ->  | W12: =Jegyzőkönyv!AG43 ->  | X12: =Jegyzőkönyv!AH43 -> 
A13: 10 | B13: =IF(ISBLANK(Jegyzőkönyv!B48),"",Jegyzőkönyv!B48) ->  | C13: =Jegyzőkönyv!D52 ->  | D13: =Jegyzőkönyv!D51 ->  | E13: =Jegyzőkönyv!G52 ->  | F13: =Jegyzőkönyv!G51 ->  | G13: =Jegyzőkönyv!J52 ->  | H13: =Jegyzőkönyv!J51 ->  | I13: =Jegyzőkönyv!M52 ->  | J13: =Jegyzőkönyv!M51 ->  | K13: =Jegyzőkönyv!P52 ->  | L13: =Jegyzőkönyv!P51 ->  | M13: =Jegyzőkönyv!S52 ->  | N13: =Jegyzőkönyv!S51 ->  | O13: =Jegyzőkönyv!V52 ->  | P13: =Jegyzőkönyv!V51 ->  | Q13: =Jegyzőkönyv!Y52 ->  | R13: =Jegyzőkönyv!Y51 ->  | S13: =Jegyzőkönyv!AB52 ->  | T13: =Jegyzőkönyv!AB51 ->  | U13: =Jegyzőkönyv!AE52 ->  | V13: =Jegyzőkönyv!AE51 ->  | W13: =Jegyzőkönyv!AG48 ->  | X13: =Jegyzőkönyv!AH48 -> 
A14: 11 | B14: =IF(ISBLANK(Jegyzőkönyv!B53),"",Jegyzőkönyv!B53) ->  | C14: =Jegyzőkönyv!D57 ->  | D14: =Jegyzőkönyv!D56 ->  | E14: =Jegyzőkönyv!G57 ->  | F14: =Jegyzőkönyv!G56 ->  | G14: =Jegyzőkönyv!J57 ->  | H14: =Jegyzőkönyv!J56 ->  | I14: =Jegyzőkönyv!M57 ->  | J14: =Jegyzőkönyv!M56 ->  | K14: =Jegyzőkönyv!P57 ->  | L14: =Jegyzőkönyv!P56 ->  | M14: =Jegyzőkönyv!S57 ->  | N14: =Jegyzőkönyv!S56 ->  | O14: =Jegyzőkönyv!V57 ->  | P14: =Jegyzőkönyv!V56 ->  | Q14: =Jegyzőkönyv!Y57 ->  | R14: =Jegyzőkönyv!Y56 ->  | S14: =Jegyzőkönyv!AB57 ->  | T14: =Jegyzőkönyv!AB56 ->  | U14: =Jegyzőkönyv!AE57 ->  | V14: =Jegyzőkönyv!AE56 ->  | W14: =Jegyzőkönyv!AG53 ->  | X14: =Jegyzőkönyv!AH53 -> 
A15: 12 | B15: =IF(ISBLANK(Jegyzőkönyv!B58),"",Jegyzőkönyv!B58) ->  | C15: =Jegyzőkönyv!D62 ->  | D15: =Jegyzőkönyv!D61 ->  | E15: =Jegyzőkönyv!G62 ->  | F15: =Jegyzőkönyv!G61 ->  | G15: =Jegyzőkönyv!J62 ->  | H15: =Jegyzőkönyv!J61 ->  | I15: =Jegyzőkönyv!M62 ->  | J15: =Jegyzőkönyv!M61 ->  | K15: =Jegyzőkönyv!P62 ->  | L15: =Jegyzőkönyv!P61 ->  | M15: =Jegyzőkönyv!S62 ->  | N15: =Jegyzőkönyv!S61 ->  | O15: =Jegyzőkönyv!V62 ->  | P15: =Jegyzőkönyv!V61 ->  | Q15: =Jegyzőkönyv!Y62 ->  | R15: =Jegyzőkönyv!Y61 ->  | S15: =Jegyzőkönyv!AB62 ->  | T15: =Jegyzőkönyv!AB61 ->  | U15: =Jegyzőkönyv!AE62 ->  | V15: =Jegyzőkönyv!AE61 ->  | W15: =Jegyzőkönyv!AG58 ->  | X15: =Jegyzőkönyv!AH58 -> 
